Workbook

Sheet CONTRIBUENTE
C2: Questo file contiene UNA MACRO (non indispensabile) nel foglio F24 Enti Pubblici. Puoi attivarla anche in un secondo momento, quando
C3: riapri il file. Per utilizzarla assicurati di salvare il file nel formato con macro ATTIVE. Le macro sono COMANDI automatici che completano
C4: le funzionalità di questo strumento, non contengono virus o altro. Qui trovi la spiegazione di Microsoft: | M4: MACRO
C5: Sistema interamente originale. Non necessita di aggiornamenti.
C6: di Marco Piccoli - P. IVA 01151800313
C7: Monfalcone - GO - Tel. 333 46 39 497
P8: Professionista Web di cui alla legge nr. 4/2013
C9: Leggi attentamente questa presentazione, osserva le "Note pratiche" e richiedi liberamente informazioni via mail.
C10: Una copia di questo file è sempre disponibile al sito www.marcopiccoli.it: | J10: Area Download .xlsx / xlsm
C12: Puoi usare questo file per annotare i tuoi F24 di TUTTI i MESI di OGNI ANNO. Al momento il trimestre selezionato è: | T12: DAL - GG/MM - AL
C13: =I82 -> 1° TRIMESTRE | G13: =IF(J140="",IF(E139=1,B136,""),J140) ->  | T13: =IF(I82="",F157,VLOOKUP(I82,C157:F160,4,FALSE)) -> 2024-01-01 | U13: =IF(I82="",G157,VLOOKUP(I82,C157:G160,5,FALSE)) -> 2024-03-31
B14: Questo strumento è liberamente utilizzabile DA TUTTI. Funziona integralmente per OGNI TRIMESTRE di ogni
B15: ANNO. Puoi sbloccarlo in qualsiasi momento per l' INTERO ANNO. I valori che inserisci sono sempre disponibili.
C16: =IF(K64=J144,B127,B126) -> Richiedi via mail il TUO CODICE di PROPRIETA' per EXCEL: | J16: info@marcopiccoli.it
C17: Note pratiche:
C18: USA IL TASTO - TAB - PER MUOVERE IL CURSORE NELLE | I18: USA IL TASTO - Canc - PER RIMUOVERE IL
C19: CELLE LIBERE. TUTTE LE ALTRE SONO BLOCCATE E NON | I19: CONTENUTO DI UNA CELLA. PER MAC USA
C20: TI SERVONO PER IL CORRETTO USO DI QUESTO FILE. | I20: - doppio tasto - NON TAGLIARE LE CELLE.
G22: per OpenOffice non disponibile
C25: Il file contiene 1 Selettore MACRO.
M26: Questo è il sistema
I27: F24 Enti Pubblici 1.6 per Excel .xlsm
C29: =CONCATENATE(I27," è un sistema elettronico UNIVERSALE con il quale puoi creare e memorizzare molteplici modelli in 1 anno ed in più anni, identificandoli con") -> F24 Enti Pubblici 1.6 per Excel .xlsm è un sistema elettronico UNIVERSALE con il quale puoi creare e memorizzare molteplici modelli in 1 anno ed in più anni, identificandoli con
C30: 1 numero di protocollo progressivo.
C31: Il documento si edita una riga sotto l' altra progressivamente e si stampa a scelta nel foglio del \ MODELLO Elettronico /.
C32: CONTRIBUENTE
C34: CODICE FISCALE | E34: 01234567891
C36: Dati ENTE | E36: Anagrafica CONTRIBUENTE
C37: PUBBLICO | E37: denominazione o ragione sociale
E38: VERSAMENTO EFFETTUATO IN QUALITA' DI
C39: Dati ALTRO
C40: SOGGETTO
E41: PER CONTO DI - indicare il codice fiscale del soggetto per conto del quale si effettua il pagamento
C42: CODICE FISCALE
C43: Dopo aver compilato il quadro CONTRIBUENTE, utilizza il foglio \ DETTAGLIO VERSAMENTO /
C44: per generare i tuoi singoli documenti inserendo gli elementi specifici riga per riga.
C45: Assegna: 1 numero di protocollo progressivo per creare ogni singolo documento. Stesso nr. di prot. = stesso DOC.
C47: =IF(H138=1,G13,IF(ISERROR(K138),J135,J134)) -> Questo file risulta al momento completamente funzionante ed il sistema rileva tutti i suoi fogli.
C49: Note:
C53: PROPRIETA' illimitata del file
C54: Questo sistema può funzionare in enne copie rinominate a piacere. Funziona con calendario PERPETUO.
C55: Per attivarlo nella totalità dell' ANNO inserisci in qualsiasi momento il tuo codice di proprietà nell' apposito spazio. Puoi
C56: usare contemporaneamente più di un file. Salva un file IN BIANCO con le tue IMPOSTAZIONI da tenere come MATRICE.
F57: =IF(K64=J144,B136,"") -> 
D58: Anagrafica: | F58: =E36 -> Anagrafica CONTRIBUENTE
J60: Partita IVA / C.F: | K60: =E34 -> 01234567891
D62: Indirizzo:
C64: QUI | J64: Inserisci qui il tuo codice di proprietà ---> | Q64: =IF(ISBLANK(K64),0,1) -> 0
C65: =IF(K64=J144,"ora è disattivato","cambi trimestre") -> cambi trimestre
C66: =C152 -> 89 | D66: giorni al | E66: primo mese disattivato | I66: =IF(K64="","",IF(J144=K64,B134,B135)) ->  | S66: Il codice che hai inserito nel sistema non è stato riconosciuto.
B67: =IF(K64=J144,B130,IF(I66=B135,B131,IF(C66<0,"",""))) ->  | S67: Le cause possono essere le seguenti:
C68: PREZZO per 1 codice di proprietà € 39,00 | H68: Questo sistema utilizza il codice ID: Contabilità #2
C69: =I27 -> F24 Enti Pubblici 1.6 per Excel .xlsm | L69: www.marcopiccoli.it | S69: 1) La Ragione Sociale inserita non coincide con il testo in mio possesso.
S70: Verifica la punteggiatura e l' assenza di spazi iniziali / finali. Controlla la P.E.C. ricevuta.
C71: Questo file funziona solo se lasciato integro in tutte le sue parti. E' garantito il funzionamento con PC - Excel .xls o sup. | S71: 2) La Partita IVA inserita non coincide con il numero in mio possesso.
C72: Il sistema conta 4 fogli compreso il presente. I fogli NON POSSONO ESSERE ELIMINATI altrimenti l' intero sistema | S72: 3) Il codice che ti ho fornito non è stato correttamente inserito.
C73: non funzionerà. Se succede involontariamente NON SALVARE IL FILE ma chiudilo e riaprilo nuovamente. | S73: 4) Hai inserito un numero a caso?
D74: Pagina WEB del sistema | G74: Sezione info | K74: I tuoi | S74: Contattami liberamente via mail in qualsiasi momento per ulteriori informazioni sul codice.
D75: QUI | G75: F.A.Q. | H75: About me | K75: COMMENTI | S75: 5) Hai cambiato Ragione Sociale o Partita IVA? Contattami, il codice è una monoutenza specifica.
S76: 6) Hai usato il codice di un altro sistema? Non tutti i sistemi hanno lo stesso codice.
C77: Se desideri attivare questo sistema per l' INTERO ANNO e per OGNI ANNO, richiedi via mail il tuo Codice di Proprietà ed | S77: Questo file utilizza il codice di proprietà ID: Contabilità #2.
C78: inseriscilo direttamente nel file che stai già usando. Il codice ti viene inviato con regolare fattura. Chiedi istruzioni via mail.
M79: info@marcopiccoli.it | S79: Per qualsiasi altra cosa, contattami dopo aver considerato questi punti.
D80: SELEZIONA da qui il TRIMESTRE per il quale ATTIVARE questo sistema.
D81: I valori che via via inserisci sono sempre disponibili.
H82: ----> | I82: 1° TRIMESTRE
L85: Con "OK" accetti le regole | M85: OK
E86: A.C. cell di Marco Piccoli | L86: sull' utilizzo di questo file
E87: 34074 Monfalcone, GO - P. IVA 01151800313
E88: INFORMA CHIUNQUE ENTRI IN POSSESSO DI QUESTO FILE, CHE NON E'
E89: POSSIBILE UTILIZZARLO SENZA PROTEZIONI ORIGINALI e CHE SI ATTIVA
E90: ILLIMITATAMENTE SOLO CON REGOLARE CODICE DI PROPRIETA'.
E91: Questo strumento è interamente originale ed è distribuito professionalmente.
E92: E' coperto da diritti d' autore dal momento della sua pubblicazione sul sito
E93: www.marcopiccoli.it.
E94: L' inserimento del Codice di Proprietà, che viene inviato via P.E.C., estende tutti
E95: i diritti anche al Titolare del Sistema individuato nell' ANAGRAFICA di questo file. | O95: QUI
E96: Per qualsiasi altra informazione contattami liberamente via mail.
C99: =CONCATENATE(I27," / Sistema originale, nessuna riproduzione è permessa.") -> F24 Enti Pubblici 1.6 per Excel .xlsm / Sistema originale, nessuna riproduzione è permessa.
C100: Rimuovere le protezioni originali, far circolare una parte del sistema o qualsiasi altro utilizzo (anche parziale, anche dei
C101: testi, anche a titolo gratuito) diverso dalle disposizioni originarie del file, sarà considerata violazione delle norme sulle
C102: opere d' ingegno. Il sistema originale privo di virus e malware si scarica al sito www.marcopiccoli.it.
R105: Torna su
B107: =I27 -> F24 Enti Pubblici 1.6 per Excel .xlsm | L107: www.marcopiccoli.it
D113: X | E113: Maschile | F113: M
E114: Femminile | F114: F
B126: Richiedi via mail il TUO CODICE di PROPRIETA' per EXCEL: | H126: Il codice che hai inserito nel sistema non è stato riconosciuto.
B127: Contatta A.C. cell | H127: Le cause possono essere le seguenti:
B128: Questo file contiene delle MACRO. Leggi le istruzioni e completa il foglio \ IMPOSTAZIONI / prima di utilizzare il file.
B129: Questo file contiene delle MACRO. | K129: disattivato
B130: Questo sistema appartiene al TITOLARE in anagrafica. Qualsiasi altro uso non è permesso. | J130: Questo file si considera funzionante al momento della richiesta del codice.
B131: Verifica le NOTE che trovi a fondo pagina. | J131: Tieni costantemente una copia di sicurezza ed una MATRICE in bianco per gli anni successivi.
B134: OK ! Codice corretto. | E134: OK | F134: Sistema scaduto | J134: Questo file risulta al momento completamente funzionante ed il sistema rileva tutti i suoi fogli.
B135: CODICE NON VALIDO | E135: NO | F135: =IF(M85=E134,TRUE,FALSE) -> TRUE | J135: SISTEMA DANNEGGIATO !!! Chiudere senza salvare!
B136: TITOLARE DEL SISTEMA | J136: =IF(C152=0,"Sistema parzialmente attivato. Inserisci il tuo CODICE di PROPRIETA' nel foglio Presentazione.",CONCATENATE("Sistema attivato dal ",TEXT(T13,"GG/MM")," al ",TEXT(U13,"GG/MM"),". Modifica il trimestre dal foglio Presentazione.")) -> Sistema attivato dal 01/01 al 31/03. Modifica il trimestre dal foglio Presentazione.
B138: 1 | C138: BIT INTEGRITA' | E138: =IF(AND(F135=TRUE,K64=J144),1,0) -> 0 | F138: PROPRIETA' | H138: =IF(G13=F134,1,IF(F135=FALSE,1,0)) -> 0 | I138: SCADENZA | K138: =B138+'DETTAGLIO VERSAMENTO'!M2019+'F24 Enti Pubblici'!AH63+Tabelle!C21 -> 4 | L138: INTEGRITA'
E139: =IF(K64=J144,1,0) -> 0 | F139: PROPRIETA'
J140: =IF(F135=FALSE,"ERRORE: manca l' OK sulle regole di utilizzo del file.",IF(K64=J144,"",IF(C66<0,F134,""))) -> 
B142: Nome del Titolare | G142: P. IVA o Cod. Fiscale | M142: 1 | N142: 2 | O142: 3 | P142: 4 | Q142: 5 | R142: 6 | S142: 7 | T142: 8 | U142: 9 | V142: 10 | W142: 11 | Z142: =M144 -> 0 | AA142: =ROUND((Z142+AC142)*3,1) -> 3 | AB142: 61 | AC142: =N144 -> 1 | AD142: =ROUND((AC142+AF142)*3,1) -> 9 | AE142: =AB142-5 -> 56 | AF142: =O144 -> 2 | AG142: =ROUND((AF142+AI142)*3,1) -> 15 | AH142: =AE142-5 -> 51 | AI142: =P144 -> 3 | AJ142: =ROUND((AI142+AL142)*3,1) -> 21 | AK142: =AH142-5 -> 46 | AL142: =Q144 -> 4 | AM142: =ROUND((AL142+AO142)*3,1) -> 27 | AN142: =AK142-5 -> 41 | AO142: =R144 -> 5 | AP142: =ROUND((AO142+AR142)*3,1) -> 33 | AQ142: =AN142-5 -> 36 | AR142: =S144 -> 6 | AS142: =ROUND((AR142+AU142)*3,1) -> 39 | AT142: =AQ142-5 -> 31 | AU142: =T144 -> 7 | AV142: =ROUND((AU142+AX142)*3,1) -> 45 | AW142: =AT142-5 -> 26 | AX142: =U144 -> 8 | AY142: =ROUND((AX142+BA142)*3,1) -> 51 | AZ142: =AW142-5 -> 21 | BA142: =V144 -> 9 | BB142: =ROUND((BA142+BD142)*3,1) -> 30 | BC142: =AZ142-5 -> 16 | BD142: =W144 -> 1 | BE142: =ROUND((BD142+Z142)*3,1) -> 3 | BF142: =BC142-5 -> 11 | BI142: A | BJ142: B | BK142: C | BL142: D | BM142: F | BN142: E | BO142: I | BP142: G | BQ142: H | BR142: K | BS142: J | BT142: N | BU142: L | BV142: M | BW142: P | BX142: O | BY142: S | BZ142: Q | CA142: R | CB142: U | CC142: T | CD142: X | CE142: V | CF142: W | CG142: Z | CH142: Y | CI142: ù | CJ142: à | CK142: è | CL142: ì | CM142: ò | CN142: / | CP142: " | CQ142: - | CR142: . | CS142: 3 | CT142: 1 | CU142: 2 | CV142: 5 | CW142: 4 | CX142: 8 | CY142: 6 | CZ142: 7 | DA142: 0 | DB142: 9
B144: =E36 -> Anagrafica CONTRIBUENTE | G144: =E34 -> 01234567891 | J144: =CONCATENATE(J148,"-",J149,"-",J150) -> 223-BKBCC-823 | M144: =IF(ISERROR(VALUE(MID($G144,M142,1))),M142,IF(M142<($H145+1),VALUE(MID($G144,M142,1)),0)) -> 0 | N144: =IF(ISERROR(VALUE(MID($G144,N142,1))),N142,IF(N142<($H145+1),VALUE(MID($G144,N142,1)),0)) -> 1 | O144: =IF(ISERROR(VALUE(MID($G144,O142,1))),O142,IF(O142<($H145+1),VALUE(MID($G144,O142,1)),0)) -> 2 | P144: =IF(ISERROR(VALUE(MID($G144,P142,1))),P142,IF(P142<($H145+1),VALUE(MID($G144,P142,1)),0)) -> 3 | Q144: =IF(ISERROR(VALUE(MID($G144,Q142,1))),Q142,IF(Q142<($H145+1),VALUE(MID($G144,Q142,1)),0)) -> 4 | R144: 5 | S144: 6 | T144: 7 | U144: 8 | V144: 9 | W144: 1 | Z144: =HLOOKUP(MID($B144,Z142,1),$BI142:$DC144,3,FALSE) ->  | AA144: 1 | AB144: 33 | AC144: 1 | AD144: 3 | AE144: 33 | AF144: 12 | AG144: 21 | AH144: 33 | AI144: 1 | AJ144: 12 | AK144: 33 | AL144: 8 | AM144: 33 | AN144: 33 | AO144: 19 | AP144: 33 | AQ144: 33 | AR144: 1 | AS144: 33 | AT144: 33 | AU144: 5 | AV144: 33 | AW144: 33 | AX144: 7 | AY144: 33 | AZ144: 12 | BA144: 3 | BB144: 33 | BC144: 19 | BD144: 1 | BE144: 1 | BF144: 47 | BI144: 1 | BJ144: 2 | BK144: 3 | BL144: 4 | BM144: 5 | BN144: 6 | BO144: 7 | BP144: 8 | BQ144: 9 | BR144: 10 | BS144: 11 | BT144: 12 | BU144: 13 | BV144: 14 | BW144: 15 | BX144: 16 | BY144: 17 | BZ144: 18 | CA144: 19 | CB144: 20 | CC144: 21 | CD144: 22 | CE144: 23 | CF144: 24 | CG144: 25 | CH144: 26 | CI144: 27 | CJ144: 28 | CK144: 29 | CL144: 30 | CM144: 31 | CN144: 32 | CO144: 33 | CP144: 34 | CQ144: 35 | CR144: 36 | CS144: 37 | CT144: 38 | CU144: 39 | CV144: 40 | CW144: 41 | CX144: 42 | CY144: 43 | CZ144: 44 | DA144: 45 | DB144: 46 | DC144: 47
G145: LUNG. Txt | H145: =LEN(G144) -> 11 | BI145: A | BJ145: B | BK145: C | BL145: D | BM145: E | BN145: F | BO145: G | BP145: H | BQ145: I | BR145: J | BS145: K | BT145: L | BU145: M | BV145: N | BW145: O | BX145: P | BY145: Q | BZ145: R | CA145: S | CB145: T | CC145: U | CD145: V | CE145: W | CF145: X | CG145: Y | CH145: Z | CS145: =COUNTIF($Z142:$BF142,CS142) -> 3 | CT145: 2 | CU145: 1 | CV145: 1 | CW145: 1 | CX145: 1 | CY145: 1 | CZ145: 1 | DA145: 1 | DB145: 2
B146: 12 | X146: =IF(X149<0,X149*-1,X149) -> 227 | BG146: =IF(BG149<0,BG149*-1,BG149) -> 3734 | CQ146: 15 | CS146: =IF(ISERROR(HLOOKUP(SMALL($Z142:$BF142,CS142),$BI144:$CH145,2,FALSE)),HLOOKUP(SMALL($Z142:$BF142,CS142),$BI144:$CH145,2,TRUE),HLOOKUP(SMALL($Z142:$BF142,CS142),$BI144:$CH145,2,FALSE)) -> A | CT146: =IF(ISERROR(HLOOKUP(SMALL($Z142:$BF142,CT142+SUM($CS145:CS145)),$BI144:$CH145,2,FALSE)),HLOOKUP(SMALL($Z142:$BF142,CT142+SUM($CS145:CS145)),$BI144:$CH145,2,TRUE),HLOOKUP(SMALL($Z142:$BF142,CT142+SUM($CS145:CS145)),$BI144:$CH145,2,FALSE)) -> B | CU146: =IF(ISERROR(HLOOKUP(SMALL($Z142:$BF142,CU142+SUM($CS145:CT145)),$BI144:$CH145,2,FALSE)),HLOOKUP(SMALL($Z142:$BF142,CU142+SUM($CS145:CT145)),$BI144:$CH145,2,TRUE),HLOOKUP(SMALL($Z142:$BF142,CU142+SUM($CS145:CT145)),$BI144:$CH145,2,FALSE)) -> C | CV146: =IF(ISERROR(HLOOKUP(SMALL($Z142:$BF142,CV142+SUM($CS145:CU145)),$BI144:$CH145,2,FALSE)),HLOOKUP(SMALL($Z142:$BF142,CV142+SUM($CS145:CU145)),$BI144:$CH145,2,TRUE),HLOOKUP(SMALL($Z142:$BF142,CV142+SUM($CS145:CU145)),$BI144:$CH145,2,FALSE)) -> G | CW146: =IF(ISERROR(HLOOKUP(SMALL($Z142:$BF142,CW142+SUM($CS145:CV145)),$BI144:$CH145,2,FALSE)),HLOOKUP(SMALL($Z142:$BF142,CW142+SUM($CS145:CV145)),$BI144:$CH145,2,TRUE),HLOOKUP(SMALL($Z142:$BF142,CW142+SUM($CS145:CV145)),$BI144:$CH145,2,FALSE)) -> G | CX146: =IF(ISERROR(HLOOKUP(SMALL($Z142:$BF142,CX142+SUM($CS145:CW145)),$BI144:$CH145,2,FALSE)),HLOOKUP(SMALL($Z142:$BF142,CX142+SUM($CS145:CW145)),$BI144:$CH145,2,TRUE),HLOOKUP(SMALL($Z142:$BF142,CX142+SUM($CS145:CW145)),$BI144:$CH145,2,FALSE)) -> O | CY146: =IF(ISERROR(HLOOKUP(SMALL($Z142:$BF142,CY142+SUM($CS145:CX145)),$BI144:$CH145,2,FALSE)),HLOOKUP(SMALL($Z142:$BF142,CY142+SUM($CS145:CX145)),$BI144:$CH145,2,TRUE),HLOOKUP(SMALL($Z142:$BF142,CY142+SUM($CS145:CX145)),$BI144:$CH145,2,FALSE)) -> K | CZ146: =IF(ISERROR(HLOOKUP(SMALL($Z142:$BF142,CZ142+SUM($CS145:CY145)),$BI144:$CH145,2,FALSE)),HLOOKUP(SMALL($Z142:$BF142,CZ142+SUM($CS145:CY145)),$BI144:$CH145,2,TRUE),HLOOKUP(SMALL($Z142:$BF142,CZ142+SUM($CS145:CY145)),$BI144:$CH145,2,FALSE)) -> P | DA146: =IF(ISERROR(HLOOKUP(SMALL($Z142:$BF142,DA142+SUM($CS145:CZ145)),$BI144:$CH145,2,FALSE)),HLOOKUP(SMALL($Z142:$BF142,DA142+SUM($CS145:CZ145)),$BI144:$CH145,2,TRUE),HLOOKUP(SMALL($Z142:$BF142,DA142+SUM($CS145:CZ145)),$BI144:$CH145,2,FALSE)) -> G | DB146: =IF(ISERROR(HLOOKUP(SMALL($Z142:$BF142,CQ146),$BI144:$CH145,2,FALSE)),HLOOKUP(SMALL($Z142:$BF142,CQ146),$BI144:$CH145,2,TRUE),HLOOKUP(SMALL($Z142:$BF142,CQ146),$BI144:$CH145,2,FALSE)) -> K
M147: =M144*$B146 -> 0 | O147: =O144*$B146 -> 24 | Q147: =Q144*$B146 -> 48 | S147: =S144*$B146 -> 72 | U147: =U144*$B146 -> 96 | W147: =W144*$B146 -> 12 | X147: =IF(X150<0,X150*-1,X150) -> 280 | Z147: =Z144*$B146 ->  | AB147: =AB144*$B146 -> 396 | AD147: =AD144*$B146 -> 36 | AF147: =AF144*$B146 -> 144 | AH147: =AH144*$B146 -> 396 | AJ147: =AJ144*$B146 -> 144 | AL147: =AL144*$B146 -> 96 | AN147: =AN144*$B146 -> 396 | AP147: =AP144*$B146 -> 396 | AR147: =AR144*$B146 -> 12 | AT147: =AT144*$B146 -> 396 | AV147: =AV144*$B146 -> 396 | AX147: =AX144*$B146 -> 84 | AZ147: =AZ144*$B146 -> 144 | BB147: =BB144*$B146 -> 396 | BD147: =BD144*$B146 -> 12 | BF147: =BF144*$B146 -> 564 | BG147: =IF(BG150<0,BG150*-1,BG150) -> 3346 | CS147: =IF(ISERROR(CS146),0,CS146) -> A | CT147: B | CU147: C | CV147: G | CW147: G | CX147: O | CY147: K | CZ147: P | DA147: G | DB147: K
J148: =CONCATENATE(AE153,AF153,AG153) -> 223 | N148: =N144*$B146 -> 12 | P148: =P144*$B146 -> 36 | R148: =R144*$B146 -> 60 | T148: =T144*$B146 -> 84 | V148: =V144*$B146 -> 108 | X148: =IF(X151<0,X151*-1,X151) -> 1105 | AA148: =AA144*$B146 -> 12 | AC148: =AC144*$B146 -> 12 | AE148: =AE144*$B146 -> 396 | AG148: =AG144*$B146 -> 252 | AI148: =AI144*$B146 -> 12 | AK148: =AK144*$B146 -> 396 | AM148: =AM144*$B146 -> 396 | AO148: =AO144*$B146 -> 228 | AQ148: =AQ144*$B146 -> 396 | AS148: =AS144*$B146 -> 396 | AU148: =AU144*$B146 -> 60 | AW148: =AW144*$B146 -> 396 | AY148: =AY144*$B146 -> 396 | BA148: =BA144*$B146 -> 36 | BC148: =BC144*$B146 -> 228 | BE148: =BE144*$B146 -> 12 | BG148: =IF(BG151<0,BG151*-1,BG151) -> 15302
B149: =DAY(E149) -> 31 | C149: =MONTH(E149) -> 3 | D149: =YEAR(E149) -> 2024 | E149: =U13 -> 45382 | J149: =CONCATENATE(R153,S153,T153,U153,V153) -> BKBCC | M149: =M147-N144 -> -1 | O149: =O147-P144 -> 21 | Q149: =Q147-R144 -> 43 | S149: =S147-T144 -> 65 | U149: =U147-V144 -> 87 | W149: =W147-M144 -> 12 | X149: =SUM(M149:W149) -> 227 | Z149: =Z147-BF144 ->  | AB149: =AB147-AA144 -> 395 | AD149: =AD147-AC144 -> 35 | AF149: =AF147-AE144 -> 111 | AH149: =AH147-AG144 -> 375 | AJ149: =AJ147-AI144 -> 143 | AL149: =AL147-AK144 -> 63 | AN149: =AN147-AM144 -> 363 | AP149: =AP147-AO144 -> 377 | AR149: =AR147-AQ144 -> -21 | AT149: =AT147-AS144 -> 363 | AV149: =AV147-AU144 -> 391 | AX149: =AX147-AW144 -> 51 | AZ149: =AZ147-AY144 -> 111 | BB149: =BB147-BA144 -> 393 | BD149: =BD147-BC144 -> -7 | BF149: =BF147-BE144 -> 563 | BG149: =SUMIF(Z149:BF149,">0") -> 3734 | CS149: A | CT149: D | CU149: E | CV149: G | CW149: O | CX149: P | CY149: R | CZ149: R | DA149: S | DB149: U
B150: =DAY(E150) -> 2 | C150: =MONTH(E150) -> 1 | D150: =YEAR(E149) -> 2024 | E150: =TODAY() -> 45293 | J150: =CONCATENATE(AH153,AI153,AJ153) -> 823 | N150: =N148-M144 -> 12 | P150: =P148-O144 -> 34 | R150: =R148-Q144 -> 56 | T150: =T148-S144 -> 78 | V150: =V148-U144 -> 100 | X150: =SUM(M150:W150) -> 280 | AA150: =AA148-AB144 -> -21 | AC150: =AC148-AD144 -> 9 | AE150: =AE148-AF144 -> 384 | AG150: =AG148-AH144 -> 219 | AI150: =AI148-AJ144 -> 0 | AK150: =AK148-AL144 -> 388 | AM150: =AM148-AN144 -> 363 | AO150: =AO148-AP144 -> 195 | AQ150: =AQ148-AR144 -> 395 | AS150: =AS148-AT144 -> 363 | AU150: =AU148-AV144 -> 27 | AW150: =AW148-AX144 -> 389 | AY150: =AY148-AZ144 -> 384 | BA150: =BA148-BB144 -> 3 | BC150: =BC148-BD144 -> 227 | BE150: =BE148-BF144 -> -35 | BG150: =SUMIF(Z150:BF150,">0") -> 3346 | CS150: =IF(CS147=0,CS149,CS146) -> A | CT150: B | CU150: C | CV150: G | CW150: G | CX150: O | CY150: K | CZ150: P | DA150: G | DB150: K
M151: =M144+M147+M149 -> -1 | N151: =N144+N148+N150 -> 25 | O151: =O144+O147+O149 -> 47 | P151: =P144+P148+P150 -> 73 | Q151: =Q144+Q147+Q149 -> 95 | R151: =R144+R148+R150 -> 121 | S151: =S144+S147+S149 -> 143 | T151: =T144+T148+T150 -> 169 | U151: =U144+U147+U149 -> 191 | V151: =V144+V148+V150 -> 217 | W151: =W144+W147+W149 -> 25 | X151: =SUM(M151:W151) -> 1105 | Z151: =Z144+Z147+Z149 ->  | AA151: =AA144+AA148+AA150 -> -8 | AB151: =AB144+AB147+AB149 -> 824 | AC151: =AC144+AC148+AC150 -> 22 | AD151: =AD144+AD147+AD149 -> 74 | AE151: =AE144+AE148+AE150 -> 813 | AF151: =AF144+AF147+AF149 -> 267 | AG151: =AG144+AG148+AG150 -> 492 | AH151: =AH144+AH147+AH149 -> 804 | AI151: =AI144+AI148+AI150 -> 13 | AJ151: =AJ144+AJ147+AJ149 -> 299 | AK151: =AK144+AK148+AK150 -> 817 | AL151: =AL144+AL147+AL149 -> 167 | AM151: =AM144+AM148+AM150 -> 792 | AN151: =AN144+AN147+AN149 -> 792 | AO151: =AO144+AO148+AO150 -> 442 | AP151: =AP144+AP147+AP149 -> 806 | AQ151: =AQ144+AQ148+AQ150 -> 824 | AR151: =AR144+AR147+AR149 -> -8 | AS151: =AS144+AS148+AS150 -> 792 | AT151: =AT144+AT147+AT149 -> 792 | AU151: =AU144+AU148+AU150 -> 92 | AV151: =AV144+AV147+AV149 -> 820 | AW151: =AW144+AW148+AW150 -> 818 | AX151: =AX144+AX147+AX149 -> 142 | AY151: =AY144+AY148+AY150 -> 813 | AZ151: =AZ144+AZ147+AZ149 -> 267 | BA151: =BA144+BA148+BA150 -> 42 | BB151: =BB144+BB147+BB149 -> 822 | BC151: =BC144+BC148+BC150 -> 474 | BD151: =BD144+BD147+BD149 -> 6 | BE151: =BE144+BE148+BE150 -> -22 | BF151: =BF144+BF147+BF149 -> 1174 | BG151: =SUMIF(Z151:BF151,">0") -> 15302
B152: =DATE(D149,C149,B149) -> 45382 | C152: =IF((B152-B153)<0,0,B152-B153) -> 89
B153: =DATE(D150,C150,B150) -> 45293 | M153: =SUM(X149:X151) -> 1612 | Q153: =LEN(TEXT(M153,"@")) -> 4 | R153: =IF(Q153>0,HLOOKUP(MID(TEXT($M153,"@"),1,1),$CS142:$DB150,9,FALSE),"") -> B | S153: =IF($Q153>1,HLOOKUP(MID(TEXT($M153,"@"),2,1),$CS142:$DB150,9,FALSE),HLOOKUP(MID(TEXT($X153,"@"),1,1),$CS142:$DB150,9,FALSE)) -> K | T153: =IF($Q153>2,HLOOKUP(MID(TEXT($M153,"@"),3,1),$CS142:$DB150,9,FALSE),HLOOKUP(MID(TEXT($X153,"@"),2,1),$CS142:$DB150,9,FALSE)) -> B | U153: =IF($Q153>3,HLOOKUP(MID(TEXT($M153,"@"),4,1),$CS142:$DB150,9,FALSE),HLOOKUP(MID(TEXT($X153,"@"),3,1),$CS142:$DB150,9,FALSE)) -> C | V153: =IF($Q153>4,HLOOKUP(MID(TEXT($M153,"@"),5,1),$CS142:$DB150,9,FALSE),HLOOKUP(MID(TEXT($X153,"@"),4,1),$CS142:$DB150,9,FALSE)) -> C | W153: =LEN(TEXT(CONCATENATE(TEXT(X146,"@"),TEXT(X147,"@"),TEXT(X148,"@")),"@")) -> 10 | X153: =IF(W153<4,CONCATENATE(TEXT(CQ146,"@"),TEXT(X146,"@"),TEXT(X147,"@"),TEXT(X148,"@")),CONCATENATE(TEXT(X146,"@"),TEXT(X147,"@"),TEXT(X148,"@"))) -> 2272801105 | Z153: =SUM(BG149:BG151) -> 22382 | AD153: =LEN(TEXT(Z153,"@")) -> 5 | AE153: =IF(AD153>0,MID(TEXT($Z153,"@"),1,1),"") -> 2 | AF153: =IF($AD153>1,MID(TEXT($Z153,"@"),2,1),MID(TEXT($BG153,"@"),1,1)) -> 2 | AG153: =IF($AD153>2,MID(TEXT($Z153,"@"),3,1),MID(TEXT($BG153,"@"),2,1)) -> 3 | AH153: =IF($AD153>3,MID(TEXT($Z153,"@"),4,1),MID(TEXT($BG153,"@"),3,1)) -> 8 | AI153: =IF($AD153>4,MID(TEXT($Z153,"@"),5,1),MID(TEXT($BG153,"@"),4,1)) -> 2 | AJ153: =IF($AD153>5,MID(TEXT($Z153,"@"),6,1),MID(TEXT($BG153,"@"),5,1)) -> 3 | AK153: =LEN(TEXT(CONCATENATE(TEXT(BG146,"@"),TEXT(BG147,"@")),"@")) -> 8 | BG153: =IF(AK153<5,CONCATENATE(TEXT(BG148,"@"),TEXT(BG146,"@"),TEXT(BG147,"@")),CONCATENATE(TEXT(BG146,"@"),TEXT(BG147,"@"))) -> 37343346
F156: ANNO | G156: ='F24 Enti Pubblici'!BN3 -> 2024
C157: 1° TRIMESTRE | E157: 1 | F157: =DATE(G156,E157,1) -> 2024-01-01 | G157: =F158-1 -> 2024-03-31
C158: 2° TRIMESTRE | E158: 4 | F158: =DATE(G156,E158,1) -> 2024-04-01 | G158: =F159-1 -> 2024-06-30
C159: 3° TRIMESTRE | E159: 7 | F159: =DATE(G156,E159,1) -> 2024-07-01 | G159: =F160-1 -> 2024-09-30
C160: 4° TRIMESTRE | E160: 10 | F160: =DATE(G156,E160,1) -> 2024-10-01 | G160: =DATE(G156,E161,31) -> 2024-12-31
E161: 12

Sheet DETTAGLIO VERSAMENTO
D2: Contribuente: | G2: Compila le righe di questa sezione una sotto l' altra, assegnando un numero di protocollo progressivo e la data in ogni riga.
D3: =CONTRIBUENTE!E34 -> 01234567891 | G3: Nel foglio \ F24 Enti Pubblici / potrai richiamare e stampare tutti i documenti così generati.
D4: Stesso nr. di PROT. = | G4: Dettaglio Versamento
D5: stesso DOCUMENTO | G5: =IF(J2019=0,"",CONTRIBUENTE!$F$134) ->  | T5: Vedi foglio \ Tabelle /
D6: NR. | E6: DATA | G6: SEZIONE | H6: cod. tributo / | I6: codice | J6: ESTREMI | K6: Riferimento | L6: Riferimento | M6: importi a debito | O6: Codice | P6: Codice | R6: Identificativo operazione | T6: Conto Tesoreria | W6: delega | Y6: Protocollo | AA6: N O T E
D7: Prot. | H7: causale | J7: IDENTIFICATIVI | K7: A | L7: B | M7: VERSATI | O7: UFFICIO | P7: ATTO | R7: tributi locali | U7: *ultimi 5 numeri | W7: irrev. | Y7: alfanumerico
A9: 1 di 2000 | B9: =IF(AE9=$AE$2013,0,IF(J$2019=1,0,D9&"-"&YEAR(E9))) -> 1-2024 | C9: =IF(J$2019=1,0,B9&"-"&AC9) -> 1-2024-1 | D9: 1 | E9: 2024-01-01 | G9: 0003 | H9: 01 01 | I9: 2020 | J9: 12345678 | K9: 51487 | L9: 125 | M9: 12345.98 | O9: AAA | P9: 123456 | R9: ZZZ999XXX | T9: C1 | U9: =IF(J$2019=1,"",IF(T9="","",RIGHT(VLOOKUP(T9,Tabelle!$B$5:$C$9,2,FALSE),5))) -> i 27 | W9: B1 | Y9: AB 000 | AA9: Testo Libero | AC9: 1 | AE9: =IF(E9>0,IF(OR(MONTH(E9)<$J$2025,MONTH(E9)>$J$2026),AE$2013,0),0) -> 0
A10: 2 | B10: =IF(AE10=$AE$2013,0,IF(J$2019=1,0,D10&"-"&YEAR(E10))) -> 2-2024 | C10: 2-2024-1 | D10: 2 | E10: 2024-01-01 | G10: 3000 | H10: 10 10 | I10: 2020 | J10: 87654321 | K10: 78415 | L10: 521 | M10: 21543.98 | U10: =IF(J$2019=1,"",IF(T10="","",RIGHT(VLOOKUP(T10,Tabelle!$B$5:$C$9,2,FALSE),5))) ->  | Y10: CD 000 | AA10: Testo Libero riga 1 | AC10: =IF(B10="",0,IF(B10=B9,COUNTIF(B$9:B9,B10)+1,1)) -> 1 | AD10: =IF(OR(D10="",J$2019=1),0,IF(AC10=28,1,0)) -> 0 | AE10: =IF(E10>0,IF(OR(MONTH(E10)<$J$2025,MONTH(E10)>$J$2026),AE$2013,0),0) -> 0
A11: 3 | B11: 2-2024 | C11: 2-2024-2 | D11: 2 | E11: 2024-01-01 | G11: 3001 | I11: 2020 | J11: AAA 99999999 BBB | M11: 1000 | U11: =IF(J$2019=1,"",IF(T11="","",RIGHT(VLOOKUP(T11,Tabelle!$B$5:$C$9,2,FALSE),5))) ->  | AA11: Testo Libero riga 2 | AC11: =IF(B11="",0,IF(B11=B10,COUNTIF(B$9:B10,B11)+1,1)) -> 2 | AD11: 0 | AE11: 0
A12: 4 | B12: 2-2024 | C12: 2-2024-3 | D12: 2 | E12: 2024-01-01 | G12: 3002 | I12: 2020 | M12: 2000 | U12: =IF(J$2019=1,"",IF(T12="","",RIGHT(VLOOKUP(T12,Tabelle!$B$5:$C$9,2,FALSE),5))) ->  | AA12: Righe di esempio | AC12: =IF(B12="",0,IF(B12=B11,COUNTIF(B$9:B11,B12)+1,1)) -> 3 | AD12: 0 | AE12: 0
A13: 5 | B13: -1900 | C13: -1900-1 | U13: =IF(J$2019=1,"",IF(T13="","",RIGHT(VLOOKUP(T13,Tabelle!$B$5:$C$9,2,FALSE),5))) ->  | AC13: =IF(B13="",0,IF(B13=B12,COUNTIF(B$9:B12,B13)+1,1)) -> 1 | AD13: 0 | AE13: 0
A14: 6 | B14: -1900 | C14: -1900-2 | U14: =IF(J$2019=1,"",IF(T14="","",RIGHT(VLOOKUP(T14,Tabelle!$B$5:$C$9,2,FALSE),5))) ->  | AC14: =IF(B14="",0,IF(B14=B13,COUNTIF(B$9:B13,B14)+1,1)) -> 2 | AD14: 0 | AE14: 0
A15: 7 | B15: -1900 | C15: -1900-3 | U15: =IF(J$2019=1,"",IF(T15="","",RIGHT(VLOOKUP(T15,Tabelle!$B$5:$C$9,2,FALSE),5))) ->  | AC15: =IF(B15="",0,IF(B15=B14,COUNTIF(B$9:B14,B15)+1,1)) -> 3 | AD15: 0 | AE15: 0
A16: 8 | B16: -1900 | C16: -1900-4 | U16: =IF(J$2019=1,"",IF(T16="","",RIGHT(VLOOKUP(T16,Tabelle!$B$5:$C$9,2,FALSE),5))) ->  | AC16: =IF(B16="",0,IF(B16=B15,COUNTIF(B$9:B15,B16)+1,1)) -> 4 | AD16: 0 | AE16: 0
A17: 9 | B17: -1900 | C17: -1900-5 | U17: =IF(J$2019=1,"",IF(T17="","",RIGHT(VLOOKUP(T17,Tabelle!$B$5:$C$9,2,FALSE),5))) ->  | AC17: =IF(B17="",0,IF(B17=B16,COUNTIF(B$9:B16,B17)+1,1)) -> 5 | AD17: 0 | AE17: 0
A18: 10 | B18: -1900 | C18: -1900-6 | U18: =IF(J$2019=1,"",IF(T18="","",RIGHT(VLOOKUP(T18,Tabelle!$B$5:$C$9,2,FALSE),5))) ->  | AC18: =IF(B18="",0,IF(B18=B17,COUNTIF(B$9:B17,B18)+1,1)) -> 6 | AD18: 0 | AE18: 0
A19: 11 | B19: -1900 | C19: -1900-7 | U19: =IF(J$2019=1,"",IF(T19="","",RIGHT(VLOOKUP(T19,Tabelle!$B$5:$C$9,2,FALSE),5))) ->  | AC19: =IF(B19="",0,IF(B19=B18,COUNTIF(B$9:B18,B19)+1,1)) -> 7 | AD19: 0 | AE19: 0
A20: 12 | B20: -1900 | C20: -1900-8 | U20: =IF(J$2019=1,"",IF(T20="","",RIGHT(VLOOKUP(T20,Tabelle!$B$5:$C$9,2,FALSE),5))) ->  | AC20: =IF(B20="",0,IF(B20=B19,COUNTIF(B$9:B19,B20)+1,1)) -> 8 | AD20: 0 | AE20: 0
A21: 13 | B21: -1900 | C21: -1900-9 | U21: =IF(J$2019=1,"",IF(T21="","",RIGHT(VLOOKUP(T21,Tabelle!$B$5:$C$9,2,FALSE),5))) ->  | AC21: =IF(B21="",0,IF(B21=B20,COUNTIF(B$9:B20,B21)+1,1)) -> 9 | AD21: 0 | AE21: 0
A22: 14 | B22: -1900 | C22: -1900-10 | U22: =IF(J$2019=1,"",IF(T22="","",RIGHT(VLOOKUP(T22,Tabelle!$B$5:$C$9,2,FALSE),5))) ->  | AC22: =IF(B22="",0,IF(B22=B21,COUNTIF(B$9:B21,B22)+1,1)) -> 10 | AD22: 0 | AE22: 0
A23: 15 | B23: -1900 | C23: -1900-11 | U23: =IF(J$2019=1,"",IF(T23="","",RIGHT(VLOOKUP(T23,Tabelle!$B$5:$C$9,2,FALSE),5))) ->  | AC23: =IF(B23="",0,IF(B23=B22,COUNTIF(B$9:B22,B23)+1,1)) -> 11 | AD23: 0 | AE23: 0
A24: 16 | B24: -1900 | C24: -1900-12 | U24: =IF(J$2019=1,"",IF(T24="","",RIGHT(VLOOKUP(T24,Tabelle!$B$5:$C$9,2,FALSE),5))) ->  | AC24: =IF(B24="",0,IF(B24=B23,COUNTIF(B$9:B23,B24)+1,1)) -> 12 | AD24: 0 | AE24: 0
A25: 17 | B25: -1900 | C25: -1900-13 | U25: =IF(J$2019=1,"",IF(T25="","",RIGHT(VLOOKUP(T25,Tabelle!$B$5:$C$9,2,FALSE),5))) ->  | AC25: =IF(B25="",0,IF(B25=B24,COUNTIF(B$9:B24,B25)+1,1)) -> 13 | AD25: 0 | AE25: 0
A26: 18 | B26: -1900 | C26: -1900-14 | U26: =IF(J$2019=1,"",IF(T26="","",RIGHT(VLOOKUP(T26,Tabelle!$B$5:$C$9,2,FALSE),5))) ->  | AC26: =IF(B26="",0,IF(B26=B25,COUNTIF(B$9:B25,B26)+1,1)) -> 14 | AD26: 0 | AE26: 0
A27: 19 | B27: -1900 | C27: -1900-15 | U27: =IF(J$2019=1,"",IF(T27="","",RIGHT(VLOOKUP(T27,Tabelle!$B$5:$C$9,2,FALSE),5))) ->  | AC27: =IF(B27="",0,IF(B27=B26,COUNTIF(B$9:B26,B27)+1,1)) -> 15 | AD27: 0 | AE27: 0
A28: 20 | B28: -1900 | C28: -1900-16 | U28: =IF(J$2019=1,"",IF(T28="","",RIGHT(VLOOKUP(T28,Tabelle!$B$5:$C$9,2,FALSE),5))) ->  | AC28: =IF(B28="",0,IF(B28=B27,COUNTIF(B$9:B27,B28)+1,1)) -> 16 | AD28: 0 | AE28: 0
A29: 21 | B29: -1900 | C29: -1900-17 | U29: =IF(J$2019=1,"",IF(T29="","",RIGHT(VLOOKUP(T29,Tabelle!$B$5:$C$9,2,FALSE),5))) ->  | AC29: =IF(B29="",0,IF(B29=B28,COUNTIF(B$9:B28,B29)+1,1)) -> 17 | AD29: 0 | AE29: 0
A30: 22 | B30: -1900 | C30: -1900-18 | U30: =IF(J$2019=1,"",IF(T30="","",RIGHT(VLOOKUP(T30,Tabelle!$B$5:$C$9,2,FALSE),5))) ->  | AC30: =IF(B30="",0,IF(B30=B29,COUNTIF(B$9:B29,B30)+1,1)) -> 18 | AD30: 0 | AE30: 0
A31: 23 | B31: -1900 | C31: -1900-19 | U31: =IF(J$2019=1,"",IF(T31="","",RIGHT(VLOOKUP(T31,Tabelle!$B$5:$C$9,2,FALSE),5))) ->  | AC31: =IF(B31="",0,IF(B31=B30,COUNTIF(B$9:B30,B31)+1,1)) -> 19 | AD31: 0 | AE31: 0
A32: 24 | B32: -1900 | C32: -1900-20 | U32: =IF(J$2019=1,"",IF(T32="","",RIGHT(VLOOKUP(T32,Tabelle!$B$5:$C$9,2,FALSE),5))) ->  | AC32: =IF(B32="",0,IF(B32=B31,COUNTIF(B$9:B31,B32)+1,1)) -> 20 | AD32: 0 | AE32: 0
A33: 25 | B33: -1900 | C33: -1900-21 | U33: =IF(J$2019=1,"",IF(T33="","",RIGHT(VLOOKUP(T33,Tabelle!$B$5:$C$9,2,FALSE),5))) ->  | AC33: =IF(B33="",0,IF(B33=B32,COUNTIF(B$9:B32,B33)+1,1)) -> 21 | AD33: 0 | AE33: 0
A34: 26 | B34: -1900 | C34: -1900-22 | U34: =IF(J$2019=1,"",IF(T34="","",RIGHT(VLOOKUP(T34,Tabelle!$B$5:$C$9,2,FALSE),5))) ->  | AC34: =IF(B34="",0,IF(B34=B33,COUNTIF(B$9:B33,B34)+1,1)) -> 22 | AD34: 0 | AE34: 0
A35: 27 | B35: -1900 | C35: -1900-23 | U35: =IF(J$2019=1,"",IF(T35="","",RIGHT(VLOOKUP(T35,Tabelle!$B$5:$C$9,2,FALSE),5))) ->  | AC35: =IF(B35="",0,IF(B35=B34,COUNTIF(B$9:B34,B35)+1,1)) -> 23 | AD35: 0 | AE35: 0
A36: 28 | B36: -1900 | C36: -1900-24 | U36: =IF(J$2019=1,"",IF(T36="","",RIGHT(VLOOKUP(T36,Tabelle!$B$5:$C$9,2,FALSE),5))) ->  | AC36: =IF(B36="",0,IF(B36=B35,COUNTIF(B$9:B35,B36)+1,1)) -> 24 | AD36: 0 | AE36: 0
A37: 29 | B37: -1900 | C37: -1900-25 | U37: =IF(J$2019=1,"",IF(T37="","",RIGHT(VLOOKUP(T37,Tabelle!$B$5:$C$9,2,FALSE),5))) ->  | AC37: =IF(B37="",0,IF(B37=B36,COUNTIF(B$9:B36,B37)+1,1)) -> 25 | AD37: 0 | AE37: 0
A38: 30 | B38: -1900 | C38: -1900-26 | U38: =IF(J$2019=1,"",IF(T38="","",RIGHT(VLOOKUP(T38,Tabelle!$B$5:$C$9,2,FALSE),5))) ->  | AC38: =IF(B38="",0,IF(B38=B37,COUNTIF(B$9:B37,B38)+1,1)) -> 26 | AD38: 0 | AE38: 0
A39: 31 | B39: -1900 | C39: -1900-27 | U39: =IF(J$2019=1,"",IF(T39="","",RIGHT(VLOOKUP(T39,Tabelle!$B$5:$C$9,2,FALSE),5))) ->  | AC39: =IF(B39="",0,IF(B39=B38,COUNTIF(B$9:B38,B39)+1,1)) -> 27 | AD39: 0 | AE39: 0
A40: 32 | B40: -1900 | C40: -1900-28 | U40: =IF(J$2019=1,"",IF(T40="","",RIGHT(VLOOKUP(T40,Tabelle!$B$5:$C$9,2,FALSE),5))) ->  | AC40: =IF(B40="",0,IF(B40=B39,COUNTIF(B$9:B39,B40)+1,1)) -> 28 | AD40: 0 | AE40: 0
A41: 33 | B41: -1900 | C41: -1900-29 | U41: =IF(J$2019=1,"",IF(T41="","",RIGHT(VLOOKUP(T41,Tabelle!$B$5:$C$9,2,FALSE),5))) ->  | AC41: =IF(B41="",0,IF(B41=B40,COUNTIF(B$9:B40,B41)+1,1)) -> 29 | AD41: 0 | AE41: 0
A42: 34 | B42: -1900 | C42: -1900-30 | U42: =IF(J$2019=1,"",IF(T42="","",RIGHT(VLOOKUP(T42,Tabelle!$B$5:$C$9,2,FALSE),5))) ->  | AC42: =IF(B42="",0,IF(B42=B41,COUNTIF(B$9:B41,B42)+1,1)) -> 30 | AD42: 0 | AE42: 0
A43: 35 | B43: -1900 | C43: -1900-31 | U43: =IF(J$2019=1,"",IF(T43="","",RIGHT(VLOOKUP(T43,Tabelle!$B$5:$C$9,2,FALSE),5))) ->  | AC43: =IF(B43="",0,IF(B43=B42,COUNTIF(B$9:B42,B43)+1,1)) -> 31 | AD43: 0 | AE43: 0
A44: 36 | B44: -1900 | C44: -1900-32 | U44: =IF(J$2019=1,"",IF(T44="","",RIGHT(VLOOKUP(T44,Tabelle!$B$5:$C$9,2,FALSE),5))) ->  | AC44: =IF(B44="",0,IF(B44=B43,COUNTIF(B$9:B43,B44)+1,1)) -> 32 | AD44: 0 | AE44: 0
A45: 37 | B45: -1900 | C45: -1900-33 | U45: =IF(J$2019=1,"",IF(T45="","",RIGHT(VLOOKUP(T45,Tabelle!$B$5:$C$9,2,FALSE),5))) ->  | AC45: =IF(B45="",0,IF(B45=B44,COUNTIF(B$9:B44,B45)+1,1)) -> 33 | AD45: 0 | AE45: 0
A46: 38 | B46: -1900 | C46: -1900-34 | U46: =IF(J$2019=1,"",IF(T46="","",RIGHT(VLOOKUP(T46,Tabelle!$B$5:$C$9,2,FALSE),5))) ->  | AC46: =IF(B46="",0,IF(B46=B45,COUNTIF(B$9:B45,B46)+1,1)) -> 34 | AD46: 0 | AE46: 0
A47: 39 | B47: -1900 | C47: -1900-35 | U47: =IF(J$2019=1,"",IF(T47="","",RIGHT(VLOOKUP(T47,Tabelle!$B$5:$C$9,2,FALSE),5))) ->  | AC47: =IF(B47="",0,IF(B47=B46,COUNTIF(B$9:B46,B47)+1,1)) -> 35 | AD47: 0 | AE47: 0
A48: 40 | B48: -1900 | C48: -1900-36 | U48: =IF(J$2019=1,"",IF(T48="","",RIGHT(VLOOKUP(T48,Tabelle!$B$5:$C$9,2,FALSE),5))) ->  | AC48: =IF(B48="",0,IF(B48=B47,COUNTIF(B$9:B47,B48)+1,1)) -> 36 | AD48: 0 | AE48: 0
A49: 41 | B49: -1900 | C49: -1900-37 | U49: =IF(J$2019=1,"",IF(T49="","",RIGHT(VLOOKUP(T49,Tabelle!$B$5:$C$9,2,FALSE),5))) ->  | AC49: =IF(B49="",0,IF(B49=B48,COUNTIF(B$9:B48,B49)+1,1)) -> 37 | AD49: 0 | AE49: 0
A50: 42 | B50: -1900 | C50: -1900-38 | U50: =IF(J$2019=1,"",IF(T50="","",RIGHT(VLOOKUP(T50,Tabelle!$B$5:$C$9,2,FALSE),5))) ->  | AC50: =IF(B50="",0,IF(B50=B49,COUNTIF(B$9:B49,B50)+1,1)) -> 38 | AD50: 0 | AE50: 0
A51: 43 | B51: -1900 | C51: -1900-39 | U51: =IF(J$2019=1,"",IF(T51="","",RIGHT(VLOOKUP(T51,Tabelle!$B$5:$C$9,2,FALSE),5))) ->  | AC51: =IF(B51="",0,IF(B51=B50,COUNTIF(B$9:B50,B51)+1,1)) -> 39 | AD51: 0 | AE51: 0
A52: 44 | B52: -1900 | C52: -1900-40 | U52: =IF(J$2019=1,"",IF(T52="","",RIGHT(VLOOKUP(T52,Tabelle!$B$5:$C$9,2,FALSE),5))) ->  | AC52: =IF(B52="",0,IF(B52=B51,COUNTIF(B$9:B51,B52)+1,1)) -> 40 | AD52: 0 | AE52: 0
A53: 45 | B53: -1900 | C53: -1900-41 | U53: =IF(J$2019=1,"",IF(T53="","",RIGHT(VLOOKUP(T53,Tabelle!$B$5:$C$9,2,FALSE),5))) ->  | AC53: =IF(B53="",0,IF(B53=B52,COUNTIF(B$9:B52,B53)+1,1)) -> 41 | AD53: 0 | AE53: 0
A54: 46 | B54: -1900 | C54: -1900-42 | U54: =IF(J$2019=1,"",IF(T54="","",RIGHT(VLOOKUP(T54,Tabelle!$B$5:$C$9,2,FALSE),5))) ->  | AC54: =IF(B54="",0,IF(B54=B53,COUNTIF(B$9:B53,B54)+1,1)) -> 42 | AD54: 0 | AE54: 0
A55: 47 | B55: -1900 | C55: -1900-43 | U55: =IF(J$2019=1,"",IF(T55="","",RIGHT(VLOOKUP(T55,Tabelle!$B$5:$C$9,2,FALSE),5))) ->  | AC55: =IF(B55="",0,IF(B55=B54,COUNTIF(B$9:B54,B55)+1,1)) -> 43 | AD55: 0 | AE55: 0
A56: 48 | B56: -1900 | C56: -1900-44 | U56: =IF(J$2019=1,"",IF(T56="","",RIGHT(VLOOKUP(T56,Tabelle!$B$5:$C$9,2,FALSE),5))) ->  | AC56: =IF(B56="",0,IF(B56=B55,COUNTIF(B$9:B55,B56)+1,1)) -> 44 | AD56: 0 | AE56: 0
A57: 49 | B57: -1900 | C57: -1900-45 | U57: =IF(J$2019=1,"",IF(T57="","",RIGHT(VLOOKUP(T57,Tabelle!$B$5:$C$9,2,FALSE),5))) ->  | AC57: =IF(B57="",0,IF(B57=B56,COUNTIF(B$9:B56,B57)+1,1)) -> 45 | AD57: 0 | AE57: 0
A58: 50 | B58: -1900 | C58: -1900-46 | U58: =IF(J$2019=1,"",IF(T58="","",RIGHT(VLOOKUP(T58,Tabelle!$B$5:$C$9,2,FALSE),5))) ->  | AC58: =IF(B58="",0,IF(B58=B57,COUNTIF(B$9:B57,B58)+1,1)) -> 46 | AD58: 0 | AE58: 0
A59: 51 | B59: -1900 | C59: -1900-47 | U59: =IF(J$2019=1,"",IF(T59="","",RIGHT(VLOOKUP(T59,Tabelle!$B$5:$C$9,2,FALSE),5))) ->  | AC59: =IF(B59="",0,IF(B59=B58,COUNTIF(B$9:B58,B59)+1,1)) -> 47 | AD59: 0 | AE59: 0
A60: 52 | B60: -1900 | C60: -1900-48 | U60: =IF(J$2019=1,"",IF(T60="","",RIGHT(VLOOKUP(T60,Tabelle!$B$5:$C$9,2,FALSE),5))) ->  | AC60: =IF(B60="",0,IF(B60=B59,COUNTIF(B$9:B59,B60)+1,1)) -> 48 | AD60: 0 | AE60: 0
A61: 53 | B61: -1900 | C61: -1900-49 | U61: =IF(J$2019=1,"",IF(T61="","",RIGHT(VLOOKUP(T61,Tabelle!$B$5:$C$9,2,FALSE),5))) ->  | AC61: =IF(B61="",0,IF(B61=B60,COUNTIF(B$9:B60,B61)+1,1)) -> 49 | AD61: 0 | AE61: 0
A62: 54 | B62: -1900 | C62: -1900-50 | U62: =IF(J$2019=1,"",IF(T62="","",RIGHT(VLOOKUP(T62,Tabelle!$B$5:$C$9,2,FALSE),5))) ->  | AC62: =IF(B62="",0,IF(B62=B61,COUNTIF(B$9:B61,B62)+1,1)) -> 50 | AD62: 0 | AE62: 0
A63: 55 | B63: -1900 | C63: -1900-51 | U63: =IF(J$2019=1,"",IF(T63="","",RIGHT(VLOOKUP(T63,Tabelle!$B$5:$C$9,2,FALSE),5))) ->  | AC63: =IF(B63="",0,IF(B63=B62,COUNTIF(B$9:B62,B63)+1,1)) -> 51 | AD63: 0 | AE63: 0
A64: 56 | B64: -1900 | C64: -1900-52 | U64: =IF(J$2019=1,"",IF(T64="","",RIGHT(VLOOKUP(T64,Tabelle!$B$5:$C$9,2,FALSE),5))) ->  | AC64: =IF(B64="",0,IF(B64=B63,COUNTIF(B$9:B63,B64)+1,1)) -> 52 | AD64: 0 | AE64: 0
A65: 57 | B65: -1900 | C65: -1900-53 | U65: =IF(J$2019=1,"",IF(T65="","",RIGHT(VLOOKUP(T65,Tabelle!$B$5:$C$9,2,FALSE),5))) ->  | AC65: =IF(B65="",0,IF(B65=B64,COUNTIF(B$9:B64,B65)+1,1)) -> 53 | AD65: 0 | AE65: 0
A66: 58 | B66: -1900 | C66: -1900-54 | U66: =IF(J$2019=1,"",IF(T66="","",RIGHT(VLOOKUP(T66,Tabelle!$B$5:$C$9,2,FALSE),5))) ->  | AC66: =IF(B66="",0,IF(B66=B65,COUNTIF(B$9:B65,B66)+1,1)) -> 54 | AD66: 0 | AE66: 0
A67: 59 | B67: -1900 | C67: -1900-55 | U67: =IF(J$2019=1,"",IF(T67="","",RIGHT(VLOOKUP(T67,Tabelle!$B$5:$C$9,2,FALSE),5))) ->  | AC67: =IF(B67="",0,IF(B67=B66,COUNTIF(B$9:B66,B67)+1,1)) -> 55 | AD67: 0 | AE67: 0
A68: 60 | B68: -1900 | C68: -1900-56 | U68: =IF(J$2019=1,"",IF(T68="","",RIGHT(VLOOKUP(T68,Tabelle!$B$5:$C$9,2,FALSE),5))) ->  | AC68: =IF(B68="",0,IF(B68=B67,COUNTIF(B$9:B67,B68)+1,1)) -> 56 | AD68: 0 | AE68: 0
A69: 61 | B69: -1900 | C69: -1900-57 | U69: =IF(J$2019=1,"",IF(T69="","",RIGHT(VLOOKUP(T69,Tabelle!$B$5:$C$9,2,FALSE),5))) ->  | AC69: =IF(B69="",0,IF(B69=B68,COUNTIF(B$9:B68,B69)+1,1)) -> 57 | AD69: 0 | AE69: 0
A70: 62 | B70: -1900 | C70: -1900-58 | U70: =IF(J$2019=1,"",IF(T70="","",RIGHT(VLOOKUP(T70,Tabelle!$B$5:$C$9,2,FALSE),5))) ->  | AC70: =IF(B70="",0,IF(B70=B69,COUNTIF(B$9:B69,B70)+1,1)) -> 58 | AD70: 0 | AE70: 0
A71: 63 | B71: -1900 | C71: -1900-59 | U71: =IF(J$2019=1,"",IF(T71="","",RIGHT(VLOOKUP(T71,Tabelle!$B$5:$C$9,2,FALSE),5))) ->  | AC71: =IF(B71="",0,IF(B71=B70,COUNTIF(B$9:B70,B71)+1,1)) -> 59 | AD71: 0 | AE71: 0
A72: 64 | B72: -1900 | C72: -1900-60 | U72: =IF(J$2019=1,"",IF(T72="","",RIGHT(VLOOKUP(T72,Tabelle!$B$5:$C$9,2,FALSE),5))) ->  | AC72: =IF(B72="",0,IF(B72=B71,COUNTIF(B$9:B71,B72)+1,1)) -> 60 | AD72: 0 | AE72: 0
A73: 65 | B73: -1900 | C73: =IF(J$2019=1,0,B73&"-"&AC73) -> -1900-61 | U73: =IF(J$2019=1,"",IF(T73="","",RIGHT(VLOOKUP(T73,Tabelle!$B$5:$C$9,2,FALSE),5))) ->  | AC73: =IF(B73="",0,IF(B73=B72,COUNTIF(B$9:B72,B73)+1,1)) -> 61 | AD73: 0 | AE73: 0
A74: 66 | B74: =IF(AE74=$AE$2013,0,IF(J$2019=1,0,D74&"-"&YEAR(E74))) -> -1900 | C74: -1900-62 | U74: =IF(J$2019=1,"",IF(T74="","",RIGHT(VLOOKUP(T74,Tabelle!$B$5:$C$9,2,FALSE),5))) ->  | AC74: =IF(B74="",0,IF(B74=B73,COUNTIF(B$9:B73,B74)+1,1)) -> 62 | AD74: =IF(OR(D74="",J$2019=1),0,IF(AC74=28,1,0)) -> 0 | AE74: =IF(E74>0,IF(OR(MONTH(E74)<$J$2025,MONTH(E74)>$J$2026),AE$2013,0),0) -> 0
A75: 67 | B75: -1900 | C75: -1900-63 | U75: =IF(J$2019=1,"",IF(T75="","",RIGHT(VLOOKUP(T75,Tabelle!$B$5:$C$9,2,FALSE),5))) ->  | AC75: =IF(B75="",0,IF(B75=B74,COUNTIF(B$9:B74,B75)+1,1)) -> 63 | AD75: 0 | AE75: 0
A76: 68 | B76: -1900 | C76: -1900-64 | U76: =IF(J$2019=1,"",IF(T76="","",RIGHT(VLOOKUP(T76,Tabelle!$B$5:$C$9,2,FALSE),5))) ->  | AC76: =IF(B76="",0,IF(B76=B75,COUNTIF(B$9:B75,B76)+1,1)) -> 64 | AD76: 0 | AE76: 0
A77: 69 | B77: -1900 | C77: -1900-65 | U77: =IF(J$2019=1,"",IF(T77="","",RIGHT(VLOOKUP(T77,Tabelle!$B$5:$C$9,2,FALSE),5))) ->  | AC77: =IF(B77="",0,IF(B77=B76,COUNTIF(B$9:B76,B77)+1,1)) -> 65 | AD77: 0 | AE77: 0
A78: 70 | B78: -1900 | C78: -1900-66 | U78: =IF(J$2019=1,"",IF(T78="","",RIGHT(VLOOKUP(T78,Tabelle!$B$5:$C$9,2,FALSE),5))) ->  | AC78: =IF(B78="",0,IF(B78=B77,COUNTIF(B$9:B77,B78)+1,1)) -> 66 | AD78: 0 | AE78: 0
A79: 71 | B79: -1900 | C79: -1900-67 | U79: =IF(J$2019=1,"",IF(T79="","",RIGHT(VLOOKUP(T79,Tabelle!$B$5:$C$9,2,FALSE),5))) ->  | AC79: =IF(B79="",0,IF(B79=B78,COUNTIF(B$9:B78,B79)+1,1)) -> 67 | AD79: 0 | AE79: 0
A80: 72 | B80: -1900 | C80: -1900-68 | U80: =IF(J$2019=1,"",IF(T80="","",RIGHT(VLOOKUP(T80,Tabelle!$B$5:$C$9,2,FALSE),5))) ->  | AC80: =IF(B80="",0,IF(B80=B79,COUNTIF(B$9:B79,B80)+1,1)) -> 68 | AD80: 0 | AE80: 0
A81: 73 | B81: -1900 | C81: -1900-69 | U81: =IF(J$2019=1,"",IF(T81="","",RIGHT(VLOOKUP(T81,Tabelle!$B$5:$C$9,2,FALSE),5))) ->  | AC81: =IF(B81="",0,IF(B81=B80,COUNTIF(B$9:B80,B81)+1,1)) -> 69 | AD81: 0 | AE81: 0
A82: 74 | B82: -1900 | C82: -1900-70 | U82: =IF(J$2019=1,"",IF(T82="","",RIGHT(VLOOKUP(T82,Tabelle!$B$5:$C$9,2,FALSE),5))) ->  | AC82: =IF(B82="",0,IF(B82=B81,COUNTIF(B$9:B81,B82)+1,1)) -> 70 | AD82: 0 | AE82: 0
A83: 75 | B83: -1900 | C83: -1900-71 | U83: =IF(J$2019=1,"",IF(T83="","",RIGHT(VLOOKUP(T83,Tabelle!$B$5:$C$9,2,FALSE),5))) ->  | AC83: =IF(B83="",0,IF(B83=B82,COUNTIF(B$9:B82,B83)+1,1)) -> 71 | AD83: 0 | AE83: 0
A84: 76 | B84: -1900 | C84: -1900-72 | U84: =IF(J$2019=1,"",IF(T84="","",RIGHT(VLOOKUP(T84,Tabelle!$B$5:$C$9,2,FALSE),5))) ->  | AC84: =IF(B84="",0,IF(B84=B83,COUNTIF(B$9:B83,B84)+1,1)) -> 72 | AD84: 0 | AE84: 0
A85: 77 | B85: -1900 | C85: -1900-73 | U85: =IF(J$2019=1,"",IF(T85="","",RIGHT(VLOOKUP(T85,Tabelle!$B$5:$C$9,2,FALSE),5))) ->  | AC85: =IF(B85="",0,IF(B85=B84,COUNTIF(B$9:B84,B85)+1,1)) -> 73 | AD85: 0 | AE85: 0
A86: 78 | B86: -1900 | C86: -1900-74 | U86: =IF(J$2019=1,"",IF(T86="","",RIGHT(VLOOKUP(T86,Tabelle!$B$5:$C$9,2,FALSE),5))) ->  | AC86: =IF(B86="",0,IF(B86=B85,COUNTIF(B$9:B85,B86)+1,1)) -> 74 | AD86: 0 | AE86: 0
A87: 79 | B87: -1900 | C87: -1900-75 | U87: =IF(J$2019=1,"",IF(T87="","",RIGHT(VLOOKUP(T87,Tabelle!$B$5:$C$9,2,FALSE),5))) ->  | AC87: =IF(B87="",0,IF(B87=B86,COUNTIF(B$9:B86,B87)+1,1)) -> 75 | AD87: 0 | AE87: 0
A88: 80 | B88: -1900 | C88: -1900-76 | U88: =IF(J$2019=1,"",IF(T88="","",RIGHT(VLOOKUP(T88,Tabelle!$B$5:$C$9,2,FALSE),5))) ->  | AC88: =IF(B88="",0,IF(B88=B87,COUNTIF(B$9:B87,B88)+1,1)) -> 76 | AD88: 0 | AE88: 0
A89: 81 | B89: -1900 | C89: -1900-77 | U89: =IF(J$2019=1,"",IF(T89="","",RIGHT(VLOOKUP(T89,Tabelle!$B$5:$C$9,2,FALSE),5))) ->  | AC89: =IF(B89="",0,IF(B89=B88,COUNTIF(B$9:B88,B89)+1,1)) -> 77 | AD89: 0 | AE89: 0
A90: 82 | B90: -1900 | C90: -1900-78 | U90: =IF(J$2019=1,"",IF(T90="","",RIGHT(VLOOKUP(T90,Tabelle!$B$5:$C$9,2,FALSE),5))) ->  | AC90: =IF(B90="",0,IF(B90=B89,COUNTIF(B$9:B89,B90)+1,1)) -> 78 | AD90: 0 | AE90: 0
A91: 83 | B91: -1900 | C91: -1900-79 | U91: =IF(J$2019=1,"",IF(T91="","",RIGHT(VLOOKUP(T91,Tabelle!$B$5:$C$9,2,FALSE),5))) ->  | AC91: =IF(B91="",0,IF(B91=B90,COUNTIF(B$9:B90,B91)+1,1)) -> 79 | AD91: 0 | AE91: 0
A92: 84 | B92: -1900 | C92: -1900-80 | U92: =IF(J$2019=1,"",IF(T92="","",RIGHT(VLOOKUP(T92,Tabelle!$B$5:$C$9,2,FALSE),5))) ->  | AC92: =IF(B92="",0,IF(B92=B91,COUNTIF(B$9:B91,B92)+1,1)) -> 80 | AD92: 0 | AE92: 0
A93: 85 | B93: -1900 | C93: -1900-81 | U93: =IF(J$2019=1,"",IF(T93="","",RIGHT(VLOOKUP(T93,Tabelle!$B$5:$C$9,2,FALSE),5))) ->  | AC93: =IF(B93="",0,IF(B93=B92,COUNTIF(B$9:B92,B93)+1,1)) -> 81 | AD93: 0 | AE93: 0
A94: 86 | B94: -1900 | C94: -1900-82 | U94: =IF(J$2019=1,"",IF(T94="","",RIGHT(VLOOKUP(T94,Tabelle!$B$5:$C$9,2,FALSE),5))) ->  | AC94: =IF(B94="",0,IF(B94=B93,COUNTIF(B$9:B93,B94)+1,1)) -> 82 | AD94: 0 | AE94: 0
A95: 87 | B95: -1900 | C95: -1900-83 | U95: =IF(J$2019=1,"",IF(T95="","",RIGHT(VLOOKUP(T95,Tabelle!$B$5:$C$9,2,FALSE),5))) ->  | AC95: =IF(B95="",0,IF(B95=B94,COUNTIF(B$9:B94,B95)+1,1)) -> 83 | AD95: 0 | AE95: 0
A96: 88 | B96: -1900 | C96: -1900-84 | U96: =IF(J$2019=1,"",IF(T96="","",RIGHT(VLOOKUP(T96,Tabelle!$B$5:$C$9,2,FALSE),5))) ->  | AC96: =IF(B96="",0,IF(B96=B95,COUNTIF(B$9:B95,B96)+1,1)) -> 84 | AD96: 0 | AE96: 0
A97: 89 | B97: -1900 | C97: -1900-85 | U97: =IF(J$2019=1,"",IF(T97="","",RIGHT(VLOOKUP(T97,Tabelle!$B$5:$C$9,2,FALSE),5))) ->  | AC97: =IF(B97="",0,IF(B97=B96,COUNTIF(B$9:B96,B97)+1,1)) -> 85 | AD97: 0 | AE97: 0
A98: 90 | B98: -1900 | C98: -1900-86 | U98: =IF(J$2019=1,"",IF(T98="","",RIGHT(VLOOKUP(T98,Tabelle!$B$5:$C$9,2,FALSE),5))) ->  | AC98: =IF(B98="",0,IF(B98=B97,COUNTIF(B$9:B97,B98)+1,1)) -> 86 | AD98: 0 | AE98: 0
A99: 91 | B99: -1900 | C99: -1900-87 | U99: =IF(J$2019=1,"",IF(T99="","",RIGHT(VLOOKUP(T99,Tabelle!$B$5:$C$9,2,FALSE),5))) ->  | AC99: =IF(B99="",0,IF(B99=B98,COUNTIF(B$9:B98,B99)+1,1)) -> 87 | AD99: 0 | AE99: 0
A100: 92 | B100: -1900 | C100: -1900-88 | U100: =IF(J$2019=1,"",IF(T100="","",RIGHT(VLOOKUP(T100,Tabelle!$B$5:$C$9,2,FALSE),5))) ->  | AC100: =IF(B100="",0,IF(B100=B99,COUNTIF(B$9:B99,B100)+1,1)) -> 88 | AD100: 0 | AE100: 0
A101: 93 | B101: -1900 | C101: -1900-89 | U101: =IF(J$2019=1,"",IF(T101="","",RIGHT(VLOOKUP(T101,Tabelle!$B$5:$C$9,2,FALSE),5))) ->  | AC101: =IF(B101="",0,IF(B101=B100,COUNTIF(B$9:B100,B101)+1,1)) -> 89 | AD101: 0 | AE101: 0
A102: 94 | B102: -1900 | C102: -1900-90 | U102: =IF(J$2019=1,"",IF(T102="","",RIGHT(VLOOKUP(T102,Tabelle!$B$5:$C$9,2,FALSE),5))) ->  | AC102: =IF(B102="",0,IF(B102=B101,COUNTIF(B$9:B101,B102)+1,1)) -> 90 | AD102: 0 | AE102: 0
A103: 95 | B103: -1900 | C103: -1900-91 | U103: =IF(J$2019=1,"",IF(T103="","",RIGHT(VLOOKUP(T103,Tabelle!$B$5:$C$9,2,FALSE),5))) ->  | AC103: =IF(B103="",0,IF(B103=B102,COUNTIF(B$9:B102,B103)+1,1)) -> 91 | AD103: 0 | AE103: 0
A104: 96 | B104: -1900 | C104: -1900-92 | U104: =IF(J$2019=1,"",IF(T104="","",RIGHT(VLOOKUP(T104,Tabelle!$B$5:$C$9,2,FALSE),5))) ->  | AC104: =IF(B104="",0,IF(B104=B103,COUNTIF(B$9:B103,B104)+1,1)) -> 92 | AD104: 0 | AE104: 0
A105: 97 | B105: -1900 | C105: -1900-93 | U105: =IF(J$2019=1,"",IF(T105="","",RIGHT(VLOOKUP(T105,Tabelle!$B$5:$C$9,2,FALSE),5))) ->  | AC105: =IF(B105="",0,IF(B105=B104,COUNTIF(B$9:B104,B105)+1,1)) -> 93 | AD105: 0 | AE105: 0
A106: 98 | B106: -1900 | C106: -1900-94 | U106: =IF(J$2019=1,"",IF(T106="","",RIGHT(VLOOKUP(T106,Tabelle!$B$5:$C$9,2,FALSE),5))) ->  | AC106: =IF(B106="",0,IF(B106=B105,COUNTIF(B$9:B105,B106)+1,1)) -> 94 | AD106: 0 | AE106: 0
A107: 99 | B107: -1900 | C107: -1900-95 | U107: =IF(J$2019=1,"",IF(T107="","",RIGHT(VLOOKUP(T107,Tabelle!$B$5:$C$9,2,FALSE),5))) ->  | AC107: =IF(B107="",0,IF(B107=B106,COUNTIF(B$9:B106,B107)+1,1)) -> 95 | AD107: 0 | AE107: 0
A108: 100 | B108: -1900 | C108: -1900-96 | U108: =IF(J$2019=1,"",IF(T108="","",RIGHT(VLOOKUP(T108,Tabelle!$B$5:$C$9,2,FALSE),5))) ->  | AC108: =IF(B108="",0,IF(B108=B107,COUNTIF(B$9:B107,B108)+1,1)) -> 96 | AD108: 0 | AE108: 0
A109: 101 | B109: -1900 | C109: -1900-97 | U109: =IF(J$2019=1,"",IF(T109="","",RIGHT(VLOOKUP(T109,Tabelle!$B$5:$C$9,2,FALSE),5))) ->  | AC109: =IF(B109="",0,IF(B109=B108,COUNTIF(B$9:B108,B109)+1,1)) -> 97 | AD109: 0 | AE109: 0
A110: 102 | B110: -1900 | C110: -1900-98 | U110: =IF(J$2019=1,"",IF(T110="","",RIGHT(VLOOKUP(T110,Tabelle!$B$5:$C$9,2,FALSE),5))) ->  | AC110: =IF(B110="",0,IF(B110=B109,COUNTIF(B$9:B109,B110)+1,1)) -> 98 | AD110: 0 | AE110: 0
A111: 103 | B111: -1900 | C111: -1900-99 | U111: =IF(J$2019=1,"",IF(T111="","",RIGHT(VLOOKUP(T111,Tabelle!$B$5:$C$9,2,FALSE),5))) ->  | AC111: =IF(B111="",0,IF(B111=B110,COUNTIF(B$9:B110,B111)+1,1)) -> 99 | AD111: 0 | AE111: 0
A112: 104 | B112: -1900 | C112: -1900-100 | U112: =IF(J$2019=1,"",IF(T112="","",RIGHT(VLOOKUP(T112,Tabelle!$B$5:$C$9,2,FALSE),5))) ->  | AC112: =IF(B112="",0,IF(B112=B111,COUNTIF(B$9:B111,B112)+1,1)) -> 100 | AD112: 0 | AE112: 0
A113: 105 | B113: -1900 | C113: -1900-101 | U113: =IF(J$2019=1,"",IF(T113="","",RIGHT(VLOOKUP(T113,Tabelle!$B$5:$C$9,2,FALSE),5))) ->  | AC113: =IF(B113="",0,IF(B113=B112,COUNTIF(B$9:B112,B113)+1,1)) -> 101 | AD113: 0 | AE113: 0
A114: 106 | B114: -1900 | C114: -1900-102 | U114: =IF(J$2019=1,"",IF(T114="","",RIGHT(VLOOKUP(T114,Tabelle!$B$5:$C$9,2,FALSE),5))) ->  | AC114: =IF(B114="",0,IF(B114=B113,COUNTIF(B$9:B113,B114)+1,1)) -> 102 | AD114: 0 | AE114: 0
A115: 107 | B115: -1900 | C115: -1900-103 | U115: =IF(J$2019=1,"",IF(T115="","",RIGHT(VLOOKUP(T115,Tabelle!$B$5:$C$9,2,FALSE),5))) ->  | AC115: =IF(B115="",0,IF(B115=B114,COUNTIF(B$9:B114,B115)+1,1)) -> 103 | AD115: 0 | AE115: 0
A116: 108 | B116: -1900 | C116: -1900-104 | U116: =IF(J$2019=1,"",IF(T116="","",RIGHT(VLOOKUP(T116,Tabelle!$B$5:$C$9,2,FALSE),5))) ->  | AC116: =IF(B116="",0,IF(B116=B115,COUNTIF(B$9:B115,B116)+1,1)) -> 104 | AD116: 0 | AE116: 0
A117: 109 | B117: -1900 | C117: -1900-105 | U117: =IF(J$2019=1,"",IF(T117="","",RIGHT(VLOOKUP(T117,Tabelle!$B$5:$C$9,2,FALSE),5))) ->  | AC117: =IF(B117="",0,IF(B117=B116,COUNTIF(B$9:B116,B117)+1,1)) -> 105 | AD117: 0 | AE117: 0
A118: 110 | B118: -1900 | C118: -1900-106 | U118: =IF(J$2019=1,"",IF(T118="","",RIGHT(VLOOKUP(T118,Tabelle!$B$5:$C$9,2,FALSE),5))) ->  | AC118: =IF(B118="",0,IF(B118=B117,COUNTIF(B$9:B117,B118)+1,1)) -> 106 | AD118: 0 | AE118: 0
A119: 111 | B119: -1900 | C119: -1900-107 | U119: =IF(J$2019=1,"",IF(T119="","",RIGHT(VLOOKUP(T119,Tabelle!$B$5:$C$9,2,FALSE),5))) ->  | AC119: =IF(B119="",0,IF(B119=B118,COUNTIF(B$9:B118,B119)+1,1)) -> 107 | AD119: 0 | AE119: 0
A120: 112 | B120: -1900 | C120: -1900-108 | U120: =IF(J$2019=1,"",IF(T120="","",RIGHT(VLOOKUP(T120,Tabelle!$B$5:$C$9,2,FALSE),5))) ->  | AC120: =IF(B120="",0,IF(B120=B119,COUNTIF(B$9:B119,B120)+1,1)) -> 108 | AD120: 0 | AE120: 0
A121: 113 | B121: -1900 | C121: -1900-109 | U121: =IF(J$2019=1,"",IF(T121="","",RIGHT(VLOOKUP(T121,Tabelle!$B$5:$C$9,2,FALSE),5))) ->  | AC121: =IF(B121="",0,IF(B121=B120,COUNTIF(B$9:B120,B121)+1,1)) -> 109 | AD121: 0 | AE121: 0
A122: 114 | B122: -1900 | C122: -1900-110 | U122: =IF(J$2019=1,"",IF(T122="","",RIGHT(VLOOKUP(T122,Tabelle!$B$5:$C$9,2,FALSE),5))) ->  | AC122: =IF(B122="",0,IF(B122=B121,COUNTIF(B$9:B121,B122)+1,1)) -> 110 | AD122: 0 | AE122: 0
A123: 115 | B123: -1900 | C123: -1900-111 | U123: =IF(J$2019=1,"",IF(T123="","",RIGHT(VLOOKUP(T123,Tabelle!$B$5:$C$9,2,FALSE),5))) ->  | AC123: =IF(B123="",0,IF(B123=B122,COUNTIF(B$9:B122,B123)+1,1)) -> 111 | AD123: 0 | AE123: 0
A124: 116 | B124: -1900 | C124: -1900-112 | U124: =IF(J$2019=1,"",IF(T124="","",RIGHT(VLOOKUP(T124,Tabelle!$B$5:$C$9,2,FALSE),5))) ->  | AC124: =IF(B124="",0,IF(B124=B123,COUNTIF(B$9:B123,B124)+1,1)) -> 112 | AD124: 0 | AE124: 0
A125: 117 | B125: -1900 | C125: -1900-113 | U125: =IF(J$2019=1,"",IF(T125="","",RIGHT(VLOOKUP(T125,Tabelle!$B$5:$C$9,2,FALSE),5))) ->  | AC125: =IF(B125="",0,IF(B125=B124,COUNTIF(B$9:B124,B125)+1,1)) -> 113 | AD125: 0 | AE125: 0
A126: 118 | B126: -1900 | C126: -1900-114 | U126: =IF(J$2019=1,"",IF(T126="","",RIGHT(VLOOKUP(T126,Tabelle!$B$5:$C$9,2,FALSE),5))) ->  | AC126: =IF(B126="",0,IF(B126=B125,COUNTIF(B$9:B125,B126)+1,1)) -> 114 | AD126: 0 | AE126: 0
A127: 119 | B127: -1900 | C127: -1900-115 | U127: =IF(J$2019=1,"",IF(T127="","",RIGHT(VLOOKUP(T127,Tabelle!$B$5:$C$9,2,FALSE),5))) ->  | AC127: =IF(B127="",0,IF(B127=B126,COUNTIF(B$9:B126,B127)+1,1)) -> 115 | AD127: 0 | AE127: 0
A128: 120 | B128: -1900 | C128: -1900-116 | U128: =IF(J$2019=1,"",IF(T128="","",RIGHT(VLOOKUP(T128,Tabelle!$B$5:$C$9,2,FALSE),5))) ->  | AC128: =IF(B128="",0,IF(B128=B127,COUNTIF(B$9:B127,B128)+1,1)) -> 116 | AD128: 0 | AE128: 0
A129: 121 | B129: -1900 | C129: -1900-117 | U129: =IF(J$2019=1,"",IF(T129="","",RIGHT(VLOOKUP(T129,Tabelle!$B$5:$C$9,2,FALSE),5))) ->  | AC129: =IF(B129="",0,IF(B129=B128,COUNTIF(B$9:B128,B129)+1,1)) -> 117 | AD129: 0 | AE129: 0
A130: 122 | B130: -1900 | C130: -1900-118 | U130: =IF(J$2019=1,"",IF(T130="","",RIGHT(VLOOKUP(T130,Tabelle!$B$5:$C$9,2,FALSE),5))) ->  | AC130: =IF(B130="",0,IF(B130=B129,COUNTIF(B$9:B129,B130)+1,1)) -> 118 | AD130: 0 | AE130: 0
A131: 123 | B131: -1900 | C131: -1900-119 | U131: =IF(J$2019=1,"",IF(T131="","",RIGHT(VLOOKUP(T131,Tabelle!$B$5:$C$9,2,FALSE),5))) ->  | AC131: =IF(B131="",0,IF(B131=B130,COUNTIF(B$9:B130,B131)+1,1)) -> 119 | AD131: 0 | AE131: 0
A132: 124 | B132: -1900 | C132: -1900-120 | U132: =IF(J$2019=1,"",IF(T132="","",RIGHT(VLOOKUP(T132,Tabelle!$B$5:$C$9,2,FALSE),5))) ->  | AC132: =IF(B132="",0,IF(B132=B131,COUNTIF(B$9:B131,B132)+1,1)) -> 120 | AD132: 0 | AE132: 0
A133: 125 | B133: -1900 | C133: -1900-121 | U133: =IF(J$2019=1,"",IF(T133="","",RIGHT(VLOOKUP(T133,Tabelle!$B$5:$C$9,2,FALSE),5))) ->  | AC133: =IF(B133="",0,IF(B133=B132,COUNTIF(B$9:B132,B133)+1,1)) -> 121 | AD133: 0 | AE133: 0
A134: 126 | B134: -1900 | C134: -1900-122 | U134: =IF(J$2019=1,"",IF(T134="","",RIGHT(VLOOKUP(T134,Tabelle!$B$5:$C$9,2,FALSE),5))) ->  | AC134: =IF(B134="",0,IF(B134=B133,COUNTIF(B$9:B133,B134)+1,1)) -> 122 | AD134: 0 | AE134: 0
A135: 127 | B135: -1900 | C135: -1900-123 | U135: =IF(J$2019=1,"",IF(T135="","",RIGHT(VLOOKUP(T135,Tabelle!$B$5:$C$9,2,FALSE),5))) ->  | AC135: =IF(B135="",0,IF(B135=B134,COUNTIF(B$9:B134,B135)+1,1)) -> 123 | AD135: 0 | AE135: 0
A136: 128 | B136: -1900 | C136: -1900-124 | U136: =IF(J$2019=1,"",IF(T136="","",RIGHT(VLOOKUP(T136,Tabelle!$B$5:$C$9,2,FALSE),5))) ->  | AC136: =IF(B136="",0,IF(B136=B135,COUNTIF(B$9:B135,B136)+1,1)) -> 124 | AD136: 0 | AE136: 0
A137: 129 | B137: -1900 | C137: =IF(J$2019=1,0,B137&"-"&AC137) -> -1900-125 | U137: =IF(J$2019=1,"",IF(T137="","",RIGHT(VLOOKUP(T137,Tabelle!$B$5:$C$9,2,FALSE),5))) ->  | AC137: =IF(B137="",0,IF(B137=B136,COUNTIF(B$9:B136,B137)+1,1)) -> 125 | AD137: 0 | AE137: 0
A138: 130 | B138: =IF(AE138=$AE$2013,0,IF(J$2019=1,0,D138&"-"&YEAR(E138))) -> -1900 | C138: -1900-126 | U138: =IF(J$2019=1,"",IF(T138="","",RIGHT(VLOOKUP(T138,Tabelle!$B$5:$C$9,2,FALSE),5))) ->  | AC138: =IF(B138="",0,IF(B138=B137,COUNTIF(B$9:B137,B138)+1,1)) -> 126 | AD138: =IF(OR(D138="",J$2019=1),0,IF(AC138=28,1,0)) -> 0 | AE138: =IF(E138>0,IF(OR(MONTH(E138)<$J$2025,MONTH(E138)>$J$2026),AE$2013,0),0) -> 0
A139: 131 | B139: -1900 | C139: -1900-127 | U139: =IF(J$2019=1,"",IF(T139="","",RIGHT(VLOOKUP(T139,Tabelle!$B$5:$C$9,2,FALSE),5))) ->  | AC139: =IF(B139="",0,IF(B139=B138,COUNTIF(B$9:B138,B139)+1,1)) -> 127 | AD139: 0 | AE139: 0
A140: 132 | B140: -1900 | C140: -1900-128 | U140: =IF(J$2019=1,"",IF(T140="","",RIGHT(VLOOKUP(T140,Tabelle!$B$5:$C$9,2,FALSE),5))) ->  | AC140: =IF(B140="",0,IF(B140=B139,COUNTIF(B$9:B139,B140)+1,1)) -> 128 | AD140: 0 | AE140: 0
A141: 133 | B141: -1900 | C141: -1900-129 | U141: =IF(J$2019=1,"",IF(T141="","",RIGHT(VLOOKUP(T141,Tabelle!$B$5:$C$9,2,FALSE),5))) ->  | AC141: =IF(B141="",0,IF(B141=B140,COUNTIF(B$9:B140,B141)+1,1)) -> 129 | AD141: 0 | AE141: 0
A142: 134 | B142: -1900 | C142: -1900-130 | U142: =IF(J$2019=1,"",IF(T142="","",RIGHT(VLOOKUP(T142,Tabelle!$B$5:$C$9,2,FALSE),5))) ->  | AC142: =IF(B142="",0,IF(B142=B141,COUNTIF(B$9:B141,B142)+1,1)) -> 130 | AD142: 0 | AE142: 0
A143: 135 | B143: -1900 | C143: -1900-131 | U143: =IF(J$2019=1,"",IF(T143="","",RIGHT(VLOOKUP(T143,Tabelle!$B$5:$C$9,2,FALSE),5))) ->  | AC143: =IF(B143="",0,IF(B143=B142,COUNTIF(B$9:B142,B143)+1,1)) -> 131 | AD143: 0 | AE143: 0
A144: 136 | B144: -1900 | C144: -1900-132 | U144: =IF(J$2019=1,"",IF(T144="","",RIGHT(VLOOKUP(T144,Tabelle!$B$5:$C$9,2,FALSE),5))) ->  | AC144: =IF(B144="",0,IF(B144=B143,COUNTIF(B$9:B143,B144)+1,1)) -> 132 | AD144: 0 | AE144: 0
A145: 137 | B145: -1900 | C145: -1900-133 | U145: =IF(J$2019=1,"",IF(T145="","",RIGHT(VLOOKUP(T145,Tabelle!$B$5:$C$9,2,FALSE),5))) ->  | AC145: =IF(B145="",0,IF(B145=B144,COUNTIF(B$9:B144,B145)+1,1)) -> 133 | AD145: 0 | AE145: 0
A146: 138 | B146: -1900 | C146: -1900-134 | U146: =IF(J$2019=1,"",IF(T146="","",RIGHT(VLOOKUP(T146,Tabelle!$B$5:$C$9,2,FALSE),5))) ->  | AC146: =IF(B146="",0,IF(B146=B145,COUNTIF(B$9:B145,B146)+1,1)) -> 134 | AD146: 0 | AE146: 0
A147: 139 | B147: -1900 | C147: -1900-135 | U147: =IF(J$2019=1,"",IF(T147="","",RIGHT(VLOOKUP(T147,Tabelle!$B$5:$C$9,2,FALSE),5))) ->  | AC147: =IF(B147="",0,IF(B147=B146,COUNTIF(B$9:B146,B147)+1,1)) -> 135 | AD147: 0 | AE147: 0
A148: 140 | B148: -1900 | C148: -1900-136 | U148: =IF(J$2019=1,"",IF(T148="","",RIGHT(VLOOKUP(T148,Tabelle!$B$5:$C$9,2,FALSE),5))) ->  | AC148: =IF(B148="",0,IF(B148=B147,COUNTIF(B$9:B147,B148)+1,1)) -> 136 | AD148: 0 | AE148: 0
A149: 141 | B149: -1900 | C149: -1900-137 | U149: =IF(J$2019=1,"",IF(T149="","",RIGHT(VLOOKUP(T149,Tabelle!$B$5:$C$9,2,FALSE),5))) ->  | AC149: =IF(B149="",0,IF(B149=B148,COUNTIF(B$9:B148,B149)+1,1)) -> 137 | AD149: 0 | AE149: 0
A150: 142 | B150: -1900 | C150: -1900-138 | U150: =IF(J$2019=1,"",IF(T150="","",RIGHT(VLOOKUP(T150,Tabelle!$B$5:$C$9,2,FALSE),5))) ->  | AC150: =IF(B150="",0,IF(B150=B149,COUNTIF(B$9:B149,B150)+1,1)) -> 138 | AD150: 0 | AE150: 0
A151: 143 | B151: -1900 | C151: -1900-139 | U151: =IF(J$2019=1,"",IF(T151="","",RIGHT(VLOOKUP(T151,Tabelle!$B$5:$C$9,2,FALSE),5))) ->  | AC151: =IF(B151="",0,IF(B151=B150,COUNTIF(B$9:B150,B151)+1,1)) -> 139 | AD151: 0 | AE151: 0
A152: 144 | B152: -1900 | C152: -1900-140 | U152: =IF(J$2019=1,"",IF(T152="","",RIGHT(VLOOKUP(T152,Tabelle!$B$5:$C$9,2,FALSE),5))) ->  | AC152: =IF(B152="",0,IF(B152=B151,COUNTIF(B$9:B151,B152)+1,1)) -> 140 | AD152: 0 | AE152: 0
A153: 145 | B153: -1900 | C153: -1900-141 | U153: =IF(J$2019=1,"",IF(T153="","",RIGHT(VLOOKUP(T153,Tabelle!$B$5:$C$9,2,FALSE),5))) ->  | AC153: =IF(B153="",0,IF(B153=B152,COUNTIF(B$9:B152,B153)+1,1)) -> 141 | AD153: 0 | AE153: 0
A154: 146 | B154: -1900 | C154: -1900-142 | U154: =IF(J$2019=1,"",IF(T154="","",RIGHT(VLOOKUP(T154,Tabelle!$B$5:$C$9,2,FALSE),5))) ->  | AC154: =IF(B154="",0,IF(B154=B153,COUNTIF(B$9:B153,B154)+1,1)) -> 142 | AD154: 0 | AE154: 0
A155: 147 | B155: -1900 | C155: -1900-143 | U155: =IF(J$2019=1,"",IF(T155="","",RIGHT(VLOOKUP(T155,Tabelle!$B$5:$C$9,2,FALSE),5))) ->  | AC155: =IF(B155="",0,IF(B155=B154,COUNTIF(B$9:B154,B155)+1,1)) -> 143 | AD155: 0 | AE155: 0
A156: 148 | B156: -1900 | C156: -1900-144 | U156: =IF(J$2019=1,"",IF(T156="","",RIGHT(VLOOKUP(T156,Tabelle!$B$5:$C$9,2,FALSE),5))) ->  | AC156: =IF(B156="",0,IF(B156=B155,COUNTIF(B$9:B155,B156)+1,1)) -> 144 | AD156: 0 | AE156: 0
A157: 149 | B157: -1900 | C157: -1900-145 | U157: =IF(J$2019=1,"",IF(T157="","",RIGHT(VLOOKUP(T157,Tabelle!$B$5:$C$9,2,FALSE),5))) ->  | AC157: =IF(B157="",0,IF(B157=B156,COUNTIF(B$9:B156,B157)+1,1)) -> 145 | AD157: 0 | AE157: 0
A158: 150 | B158: -1900 | C158: -1900-146 | U158: =IF(J$2019=1,"",IF(T158="","",RIGHT(VLOOKUP(T158,Tabelle!$B$5:$C$9,2,FALSE),5))) ->  | AC158: =IF(B158="",0,IF(B158=B157,COUNTIF(B$9:B157,B158)+1,1)) -> 146 | AD158: 0 | AE158: 0
A159: 151 | B159: -1900 | C159: -1900-147 | U159: =IF(J$2019=1,"",IF(T159="","",RIGHT(VLOOKUP(T159,Tabelle!$B$5:$C$9,2,FALSE),5))) ->  | AC159: =IF(B159="",0,IF(B159=B158,COUNTIF(B$9:B158,B159)+1,1)) -> 147 | AD159: 0 | AE159: 0
A160: 152 | B160: -1900 | C160: -1900-148 | U160: =IF(J$2019=1,"",IF(T160="","",RIGHT(VLOOKUP(T160,Tabelle!$B$5:$C$9,2,FALSE),5))) ->  | AC160: =IF(B160="",0,IF(B160=B159,COUNTIF(B$9:B159,B160)+1,1)) -> 148 | AD160: 0 | AE160: 0
A161: 153 | B161: -1900 | C161: -1900-149 | U161: =IF(J$2019=1,"",IF(T161="","",RIGHT(VLOOKUP(T161,Tabelle!$B$5:$C$9,2,FALSE),5))) ->  | AC161: =IF(B161="",0,IF(B161=B160,COUNTIF(B$9:B160,B161)+1,1)) -> 149 | AD161: 0 | AE161: 0
A162: 154 | B162: -1900 | C162: -1900-150 | U162: =IF(J$2019=1,"",IF(T162="","",RIGHT(VLOOKUP(T162,Tabelle!$B$5:$C$9,2,FALSE),5))) ->  | AC162: =IF(B162="",0,IF(B162=B161,COUNTIF(B$9:B161,B162)+1,1)) -> 150 | AD162: 0 | AE162: 0
A163: 155 | B163: -1900 | C163: -1900-151 | U163: =IF(J$2019=1,"",IF(T163="","",RIGHT(VLOOKUP(T163,Tabelle!$B$5:$C$9,2,FALSE),5))) ->  | AC163: =IF(B163="",0,IF(B163=B162,COUNTIF(B$9:B162,B163)+1,1)) -> 151 | AD163: 0 | AE163: 0
A164: 156 | B164: -1900 | C164: -1900-152 | U164: =IF(J$2019=1,"",IF(T164="","",RIGHT(VLOOKUP(T164,Tabelle!$B$5:$C$9,2,FALSE),5))) ->  | AC164: =IF(B164="",0,IF(B164=B163,COUNTIF(B$9:B163,B164)+1,1)) -> 152 | AD164: 0 | AE164: 0
A165: 157 | B165: -1900 | C165: -1900-153 | U165: =IF(J$2019=1,"",IF(T165="","",RIGHT(VLOOKUP(T165,Tabelle!$B$5:$C$9,2,FALSE),5))) ->  | AC165: =IF(B165="",0,IF(B165=B164,COUNTIF(B$9:B164,B165)+1,1)) -> 153 | AD165: 0 | AE165: 0
A166: 158 | B166: -1900 | C166: -1900-154 | U166: =IF(J$2019=1,"",IF(T166="","",RIGHT(VLOOKUP(T166,Tabelle!$B$5:$C$9,2,FALSE),5))) ->  | AC166: =IF(B166="",0,IF(B166=B165,COUNTIF(B$9:B165,B166)+1,1)) -> 154 | AD166: 0 | AE166: 0
A167: 159 | B167: -1900 | C167: -1900-155 | U167: =IF(J$2019=1,"",IF(T167="","",RIGHT(VLOOKUP(T167,Tabelle!$B$5:$C$9,2,FALSE),5))) ->  | AC167: =IF(B167="",0,IF(B167=B166,COUNTIF(B$9:B166,B167)+1,1)) -> 155 | AD167: 0 | AE167: 0
A168: 160 | B168: -1900 | C168: -1900-156 | U168: =IF(J$2019=1,"",IF(T168="","",RIGHT(VLOOKUP(T168,Tabelle!$B$5:$C$9,2,FALSE),5))) ->  | AC168: =IF(B168="",0,IF(B168=B167,COUNTIF(B$9:B167,B168)+1,1)) -> 156 | AD168: 0 | AE168: 0
A169: 161 | B169: -1900 | C169: -1900-157 | U169: =IF(J$2019=1,"",IF(T169="","",RIGHT(VLOOKUP(T169,Tabelle!$B$5:$C$9,2,FALSE),5))) ->  | AC169: =IF(B169="",0,IF(B169=B168,COUNTIF(B$9:B168,B169)+1,1)) -> 157 | AD169: 0 | AE169: 0
A170: 162 | B170: -1900 | C170: -1900-158 | U170: =IF(J$2019=1,"",IF(T170="","",RIGHT(VLOOKUP(T170,Tabelle!$B$5:$C$9,2,FALSE),5))) ->  | AC170: =IF(B170="",0,IF(B170=B169,COUNTIF(B$9:B169,B170)+1,1)) -> 158 | AD170: 0 | AE170: 0
A171: 163 | B171: -1900 | C171: -1900-159 | U171: =IF(J$2019=1,"",IF(T171="","",RIGHT(VLOOKUP(T171,Tabelle!$B$5:$C$9,2,FALSE),5))) ->  | AC171: =IF(B171="",0,IF(B171=B170,COUNTIF(B$9:B170,B171)+1,1)) -> 159 | AD171: 0 | AE171: 0
A172: 164 | B172: -1900 | C172: -1900-160 | U172: =IF(J$2019=1,"",IF(T172="","",RIGHT(VLOOKUP(T172,Tabelle!$B$5:$C$9,2,FALSE),5))) ->  | AC172: =IF(B172="",0,IF(B172=B171,COUNTIF(B$9:B171,B172)+1,1)) -> 160 | AD172: 0 | AE172: 0
A173: 165 | B173: -1900 | C173: -1900-161 | U173: =IF(J$2019=1,"",IF(T173="","",RIGHT(VLOOKUP(T173,Tabelle!$B$5:$C$9,2,FALSE),5))) ->  | AC173: =IF(B173="",0,IF(B173=B172,COUNTIF(B$9:B172,B173)+1,1)) -> 161 | AD173: 0 | AE173: 0
A174: 166 | B174: -1900 | C174: -1900-162 | U174: =IF(J$2019=1,"",IF(T174="","",RIGHT(VLOOKUP(T174,Tabelle!$B$5:$C$9,2,FALSE),5))) ->  | AC174: =IF(B174="",0,IF(B174=B173,COUNTIF(B$9:B173,B174)+1,1)) -> 162 | AD174: 0 | AE174: 0
A175: 167 | B175: -1900 | C175: -1900-163 | U175: =IF(J$2019=1,"",IF(T175="","",RIGHT(VLOOKUP(T175,Tabelle!$B$5:$C$9,2,FALSE),5))) ->  | AC175: =IF(B175="",0,IF(B175=B174,COUNTIF(B$9:B174,B175)+1,1)) -> 163 | AD175: 0 | AE175: 0
A176: 168 | B176: -1900 | C176: -1900-164 | U176: =IF(J$2019=1,"",IF(T176="","",RIGHT(VLOOKUP(T176,Tabelle!$B$5:$C$9,2,FALSE),5))) ->  | AC176: =IF(B176="",0,IF(B176=B175,COUNTIF(B$9:B175,B176)+1,1)) -> 164 | AD176: 0 | AE176: 0
A177: 169 | B177: -1900 | C177: -1900-165 | U177: =IF(J$2019=1,"",IF(T177="","",RIGHT(VLOOKUP(T177,Tabelle!$B$5:$C$9,2,FALSE),5))) ->  | AC177: =IF(B177="",0,IF(B177=B176,COUNTIF(B$9:B176,B177)+1,1)) -> 165 | AD177: 0 | AE177: 0
A178: 170 | B178: -1900 | C178: -1900-166 | U178: =IF(J$2019=1,"",IF(T178="","",RIGHT(VLOOKUP(T178,Tabelle!$B$5:$C$9,2,FALSE),5))) ->  | AC178: =IF(B178="",0,IF(B178=B177,COUNTIF(B$9:B177,B178)+1,1)) -> 166 | AD178: 0 | AE178: 0
A179: 171 | B179: -1900 | C179: -1900-167 | U179: =IF(J$2019=1,"",IF(T179="","",RIGHT(VLOOKUP(T179,Tabelle!$B$5:$C$9,2,FALSE),5))) ->  | AC179: =IF(B179="",0,IF(B179=B178,COUNTIF(B$9:B178,B179)+1,1)) -> 167 | AD179: 0 | AE179: 0
A180: 172 | B180: -1900 | C180: -1900-168 | U180: =IF(J$2019=1,"",IF(T180="","",RIGHT(VLOOKUP(T180,Tabelle!$B$5:$C$9,2,FALSE),5))) ->  | AC180: =IF(B180="",0,IF(B180=B179,COUNTIF(B$9:B179,B180)+1,1)) -> 168 | AD180: 0 | AE180: 0
A181: 173 | B181: -1900 | C181: -1900-169 | U181: =IF(J$2019=1,"",IF(T181="","",RIGHT(VLOOKUP(T181,Tabelle!$B$5:$C$9,2,FALSE),5))) ->  | AC181: =IF(B181="",0,IF(B181=B180,COUNTIF(B$9:B180,B181)+1,1)) -> 169 | AD181: 0 | AE181: 0
A182: 174 | B182: -1900 | C182: -1900-170 | U182: =IF(J$2019=1,"",IF(T182="","",RIGHT(VLOOKUP(T182,Tabelle!$B$5:$C$9,2,FALSE),5))) ->  | AC182: =IF(B182="",0,IF(B182=B181,COUNTIF(B$9:B181,B182)+1,1)) -> 170 | AD182: 0 | AE182: 0
A183: 175 | B183: -1900 | C183: -1900-171 | U183: =IF(J$2019=1,"",IF(T183="","",RIGHT(VLOOKUP(T183,Tabelle!$B$5:$C$9,2,FALSE),5))) ->  | AC183: =IF(B183="",0,IF(B183=B182,COUNTIF(B$9:B182,B183)+1,1)) -> 171 | AD183: 0 | AE183: 0
A184: 176 | B184: -1900 | C184: -1900-172 | U184: =IF(J$2019=1,"",IF(T184="","",RIGHT(VLOOKUP(T184,Tabelle!$B$5:$C$9,2,FALSE),5))) ->  | AC184: =IF(B184="",0,IF(B184=B183,COUNTIF(B$9:B183,B184)+1,1)) -> 172 | AD184: 0 | AE184: 0
A185: 177 | B185: -1900 | C185: -1900-173 | U185: =IF(J$2019=1,"",IF(T185="","",RIGHT(VLOOKUP(T185,Tabelle!$B$5:$C$9,2,FALSE),5))) ->  | AC185: =IF(B185="",0,IF(B185=B184,COUNTIF(B$9:B184,B185)+1,1)) -> 173 | AD185: 0 | AE185: 0
A186: 178 | B186: -1900 | C186: -1900-174 | U186: =IF(J$2019=1,"",IF(T186="","",RIGHT(VLOOKUP(T186,Tabelle!$B$5:$C$9,2,FALSE),5))) ->  | AC186: =IF(B186="",0,IF(B186=B185,COUNTIF(B$9:B185,B186)+1,1)) -> 174 | AD186: 0 | AE186: 0
A187: 179 | B187: -1900 | C187: -1900-175 | U187: =IF(J$2019=1,"",IF(T187="","",RIGHT(VLOOKUP(T187,Tabelle!$B$5:$C$9,2,FALSE),5))) ->  | AC187: =IF(B187="",0,IF(B187=B186,COUNTIF(B$9:B186,B187)+1,1)) -> 175 | AD187: 0 | AE187: 0
A188: 180 | B188: -1900 | C188: -1900-176 | U188: =IF(J$2019=1,"",IF(T188="","",RIGHT(VLOOKUP(T188,Tabelle!$B$5:$C$9,2,FALSE),5))) ->  | AC188: =IF(B188="",0,IF(B188=B187,COUNTIF(B$9:B187,B188)+1,1)) -> 176 | AD188: 0 | AE188: 0
A189: 181 | B189: -1900 | C189: -1900-177 | U189: =IF(J$2019=1,"",IF(T189="","",RIGHT(VLOOKUP(T189,Tabelle!$B$5:$C$9,2,FALSE),5))) ->  | AC189: =IF(B189="",0,IF(B189=B188,COUNTIF(B$9:B188,B189)+1,1)) -> 177 | AD189: 0 | AE189: 0
A190: 182 | B190: -1900 | C190: -1900-178 | U190: =IF(J$2019=1,"",IF(T190="","",RIGHT(VLOOKUP(T190,Tabelle!$B$5:$C$9,2,FALSE),5))) ->  | AC190: =IF(B190="",0,IF(B190=B189,COUNTIF(B$9:B189,B190)+1,1)) -> 178 | AD190: 0 | AE190: 0
A191: 183 | B191: -1900 | C191: -1900-179 | U191: =IF(J$2019=1,"",IF(T191="","",RIGHT(VLOOKUP(T191,Tabelle!$B$5:$C$9,2,FALSE),5))) ->  | AC191: =IF(B191="",0,IF(B191=B190,COUNTIF(B$9:B190,B191)+1,1)) -> 179 | AD191: 0 | AE191: 0
A192: 184 | B192: -1900 | C192: -1900-180 | U192: =IF(J$2019=1,"",IF(T192="","",RIGHT(VLOOKUP(T192,Tabelle!$B$5:$C$9,2,FALSE),5))) ->  | AC192: =IF(B192="",0,IF(B192=B191,COUNTIF(B$9:B191,B192)+1,1)) -> 180 | AD192: 0 | AE192: 0
A193: 185 | B193: -1900 | C193: -1900-181 | U193: =IF(J$2019=1,"",IF(T193="","",RIGHT(VLOOKUP(T193,Tabelle!$B$5:$C$9,2,FALSE),5))) ->  | AC193: =IF(B193="",0,IF(B193=B192,COUNTIF(B$9:B192,B193)+1,1)) -> 181 | AD193: 0 | AE193: 0
A194: 186 | B194: -1900 | C194: -1900-182 | U194: =IF(J$2019=1,"",IF(T194="","",RIGHT(VLOOKUP(T194,Tabelle!$B$5:$C$9,2,FALSE),5))) ->  | AC194: =IF(B194="",0,IF(B194=B193,COUNTIF(B$9:B193,B194)+1,1)) -> 182 | AD194: 0 | AE194: 0
A195: 187 | B195: -1900 | C195: -1900-183 | U195: =IF(J$2019=1,"",IF(T195="","",RIGHT(VLOOKUP(T195,Tabelle!$B$5:$C$9,2,FALSE),5))) ->  | AC195: =IF(B195="",0,IF(B195=B194,COUNTIF(B$9:B194,B195)+1,1)) -> 183 | AD195: 0 | AE195: 0
A196: 188 | B196: -1900 | C196: -1900-184 | U196: =IF(J$2019=1,"",IF(T196="","",RIGHT(VLOOKUP(T196,Tabelle!$B$5:$C$9,2,FALSE),5))) ->  | AC196: =IF(B196="",0,IF(B196=B195,COUNTIF(B$9:B195,B196)+1,1)) -> 184 | AD196: 0 | AE196: 0
A197: 189 | B197: -1900 | C197: -1900-185 | U197: =IF(J$2019=1,"",IF(T197="","",RIGHT(VLOOKUP(T197,Tabelle!$B$5:$C$9,2,FALSE),5))) ->  | AC197: =IF(B197="",0,IF(B197=B196,COUNTIF(B$9:B196,B197)+1,1)) -> 185 | AD197: 0 | AE197: 0
A198: 190 | B198: -1900 | C198: -1900-186 | U198: =IF(J$2019=1,"",IF(T198="","",RIGHT(VLOOKUP(T198,Tabelle!$B$5:$C$9,2,FALSE),5))) ->  | AC198: =IF(B198="",0,IF(B198=B197,COUNTIF(B$9:B197,B198)+1,1)) -> 186 | AD198: 0 | AE198: 0
A199: 191 | B199: -1900 | C199: -1900-187 | U199: =IF(J$2019=1,"",IF(T199="","",RIGHT(VLOOKUP(T199,Tabelle!$B$5:$C$9,2,FALSE),5))) ->  | AC199: =IF(B199="",0,IF(B199=B198,COUNTIF(B$9:B198,B199)+1,1)) -> 187 | AD199: 0 | AE199: 0
A200: 192 | B200: -1900 | C200: -1900-188 | U200: =IF(J$2019=1,"",IF(T200="","",RIGHT(VLOOKUP(T200,Tabelle!$B$5:$C$9,2,FALSE),5))) ->  | AC200: =IF(B200="",0,IF(B200=B199,COUNTIF(B$9:B199,B200)+1,1)) -> 188 | AD200: 0 | AE200: 0
A201: 193 | B201: -1900 | C201: =IF(J$2019=1,0,B201&"-"&AC201) -> -1900-189 | U201: =IF(J$2019=1,"",IF(T201="","",RIGHT(VLOOKUP(T201,Tabelle!$B$5:$C$9,2,FALSE),5))) ->  | AC201: =IF(B201="",0,IF(B201=B200,COUNTIF(B$9:B200,B201)+1,1)) -> 189 | AD201: 0 | AE201: 0
A202: 194 | B202: =IF(AE202=$AE$2013,0,IF(J$2019=1,0,D202&"-"&YEAR(E202))) -> -1900 | C202: -1900-190 | U202: =IF(J$2019=1,"",IF(T202="","",RIGHT(VLOOKUP(T202,Tabelle!$B$5:$C$9,2,FALSE),5))) ->  | AC202: =IF(B202="",0,IF(B202=B201,COUNTIF(B$9:B201,B202)+1,1)) -> 190 | AD202: =IF(OR(D202="",J$2019=1),0,IF(AC202=28,1,0)) -> 0 | AE202: =IF(E202>0,IF(OR(MONTH(E202)<$J$2025,MONTH(E202)>$J$2026),AE$2013,0),0) -> 0
... 1817 more rows

Sheet F24 Enti Pubblici
BN2: ANNO
BN3: 2024
AE4: =VLOOKUP(VLOOKUP(BN5&"-"&BN3,'DETTAGLIO VERSAMENTO'!B9:W2008,22,FALSE),Tabelle!E5:F7,2,FALSE) -> NOME 1 | BN4: Protocollo DOC.
BN5: 1
N7: =MID(CONTRIBUENTE!$E34,1,1) -> 0 | P7: =MID(CONTRIBUENTE!$E34,2,1) -> 1 | Q7: =MID(CONTRIBUENTE!$E34,3,1) -> 2 | R7: =MID(CONTRIBUENTE!$E34,4,1) -> 3 | S7: =MID(CONTRIBUENTE!$E34,5,1) -> 4 | T7: =MID(CONTRIBUENTE!$E34,6,1) -> 5 | U7: =MID(CONTRIBUENTE!$E34,7,1) -> 6 | V7: =MID(CONTRIBUENTE!$E34,8,1) -> 7 | W7: =MID(CONTRIBUENTE!$E34,9,1) -> 8 | X7: =MID(CONTRIBUENTE!$E34,10,1) -> 9 | Y7: =MID(CONTRIBUENTE!$E34,11,1) -> 1
N9: =CONTRIBUENTE!E36 -> Anagrafica CONTRIBUENTE
N11: =LEFT(CONTRIBUENTE!E39,1) ->  | P11: =RIGHT(CONTRIBUENTE!E39,1) ->  | R11: =CONTRIBUENTE!F39 -> 0 | BN11: Alfanumerico
BN12: =VLOOKUP($BN$5&"-"&$BN$3,'DETTAGLIO VERSAMENTO'!$B$9:$Y$2008,24,FALSE) -> AB 000
AE13: =MID(CONTRIBUENTE!$E42,1,1) ->  | AG13: =MID(CONTRIBUENTE!$E42,2,1) ->  | AI13: =MID(CONTRIBUENTE!$E42,3,1) ->  | AK13: =MID(CONTRIBUENTE!$E42,4,1) ->  | AM13: =MID(CONTRIBUENTE!$E42,5,1) ->  | AO13: =MID(CONTRIBUENTE!$E42,6,1) ->  | AQ13: =MID(CONTRIBUENTE!$E42,7,1) ->  | AS13: =MID(CONTRIBUENTE!$E42,8,1) ->  | AU13: =MID(CONTRIBUENTE!$E42,9,1) ->  | AW13: =MID(CONTRIBUENTE!$E42,10,1) ->  | AY13: =MID(CONTRIBUENTE!$E42,11,1) ->  | BA13: =MID(CONTRIBUENTE!$E42,12,1) ->  | BC13: =MID(CONTRIBUENTE!$E42,13,1) ->  | BE13: =MID(CONTRIBUENTE!$E42,14,1) ->  | BG13: =MID(CONTRIBUENTE!$E42,15,1) ->  | BI13: =MID(CONTRIBUENTE!$E42,16,1) -> 
BN15: =T62 -> 
D16: =IF(MID(TEXT(VLOOKUP($BN$5&"-"&$BN$3,'DETTAGLIO VERSAMENTO'!$B$9:$O$2008,14,FALSE),"???"),1,1)=" ",0,MID(TEXT(VLOOKUP($BN$5&"-"&$BN$3,'DETTAGLIO VERSAMENTO'!$B$9:$O$2008,14,FALSE),"???"),1,1)) -> A | F16: =IF(MID(TEXT(VLOOKUP($BN$5&"-"&$BN$3,'DETTAGLIO VERSAMENTO'!$B$9:$O$2008,14,FALSE),"???"),2,1)=" ",0,MID(TEXT(VLOOKUP($BN$5&"-"&$BN$3,'DETTAGLIO VERSAMENTO'!$B$9:$O$2008,14,FALSE),"???"),2,1)) -> A | H16: =IF(MID(TEXT(VLOOKUP($BN$5&"-"&$BN$3,'DETTAGLIO VERSAMENTO'!$B$9:$O$2008,14,FALSE),"???"),3,1)=" ",0,MID(TEXT(VLOOKUP($BN$5&"-"&$BN$3,'DETTAGLIO VERSAMENTO'!$B$9:$O$2008,14,FALSE),"???"),3,1)) -> A | K16: =IF(MID(TEXT(VLOOKUP($BN$5&"-"&$BN$3,'DETTAGLIO VERSAMENTO'!$B$9:$P$2008,15,FALSE),"???????????"),1,1)=" ",0,MID(TEXT(VLOOKUP($BN$5&"-"&$BN$3,'DETTAGLIO VERSAMENTO'!$B$9:$P$2008,15,FALSE),"???????????"),1,1)) -> 0 | L16: =IF(MID(TEXT(VLOOKUP($BN$5&"-"&$BN$3,'DETTAGLIO VERSAMENTO'!$B$9:$P$2008,15,FALSE),"???????????"),2,1)=" ",0,MID(TEXT(VLOOKUP($BN$5&"-"&$BN$3,'DETTAGLIO VERSAMENTO'!$B$9:$P$2008,15,FALSE),"???????????"),2,1)) -> 0 | M16: =IF(MID(TEXT(VLOOKUP($BN$5&"-"&$BN$3,'DETTAGLIO VERSAMENTO'!$B$9:$P$2008,15,FALSE),"???????????"),3,1)=" ",0,MID(TEXT(VLOOKUP($BN$5&"-"&$BN$3,'DETTAGLIO VERSAMENTO'!$B$9:$P$2008,15,FALSE),"???????????"),3,1)) -> 0 | N16: =IF(MID(TEXT(VLOOKUP($BN$5&"-"&$BN$3,'DETTAGLIO VERSAMENTO'!$B$9:$P$2008,15,FALSE),"???????????"),4,1)=" ",0,MID(TEXT(VLOOKUP($BN$5&"-"&$BN$3,'DETTAGLIO VERSAMENTO'!$B$9:$P$2008,15,FALSE),"???????????"),4,1)) -> 0 | P16: =IF(MID(TEXT(VLOOKUP($BN$5&"-"&$BN$3,'DETTAGLIO VERSAMENTO'!$B$9:$P$2008,15,FALSE),"???????????"),5,1)=" ",0,MID(TEXT(VLOOKUP($BN$5&"-"&$BN$3,'DETTAGLIO VERSAMENTO'!$B$9:$P$2008,15,FALSE),"???????????"),5,1)) -> 0 | Q16: =IF(MID(TEXT(VLOOKUP($BN$5&"-"&$BN$3,'DETTAGLIO VERSAMENTO'!$B$9:$P$2008,15,FALSE),"???????????"),6,1)=" ",0,MID(TEXT(VLOOKUP($BN$5&"-"&$BN$3,'DETTAGLIO VERSAMENTO'!$B$9:$P$2008,15,FALSE),"???????????"),6,1)) -> 1 | R16: =IF(MID(TEXT(VLOOKUP($BN$5&"-"&$BN$3,'DETTAGLIO VERSAMENTO'!$B$9:$P$2008,15,FALSE),"???????????"),7,1)=" ",0,MID(TEXT(VLOOKUP($BN$5&"-"&$BN$3,'DETTAGLIO VERSAMENTO'!$B$9:$P$2008,15,FALSE),"???????????"),7,1)) -> 2 | S16: =IF(MID(TEXT(VLOOKUP($BN$5&"-"&$BN$3,'DETTAGLIO VERSAMENTO'!$B$9:$P$2008,15,FALSE),"???????????"),8,1)=" ",0,MID(TEXT(VLOOKUP($BN$5&"-"&$BN$3,'DETTAGLIO VERSAMENTO'!$B$9:$P$2008,15,FALSE),"???????????"),8,1)) -> 3 | T16: =IF(MID(TEXT(VLOOKUP($BN$5&"-"&$BN$3,'DETTAGLIO VERSAMENTO'!$B$9:$P$2008,15,FALSE),"???????????"),9,1)=" ",0,MID(TEXT(VLOOKUP($BN$5&"-"&$BN$3,'DETTAGLIO VERSAMENTO'!$B$9:$P$2008,15,FALSE),"???????????"),9,1)) -> 4 | U16: =IF(MID(TEXT(VLOOKUP($BN$5&"-"&$BN$3,'DETTAGLIO VERSAMENTO'!$B$9:$P$2008,15,FALSE),"???????????"),10,1)=" ",0,MID(TEXT(VLOOKUP($BN$5&"-"&$BN$3,'DETTAGLIO VERSAMENTO'!$B$9:$P$2008,15,FALSE),"???????????"),10,1)) -> 5 | V16: =IF(MID(TEXT(VLOOKUP($BN$5&"-"&$BN$3,'DETTAGLIO VERSAMENTO'!$B$9:$P$2008,15,FALSE),"???????????"),11,1)=" ",0,MID(TEXT(VLOOKUP($BN$5&"-"&$BN$3,'DETTAGLIO VERSAMENTO'!$B$9:$P$2008,15,FALSE),"???????????"),11,1)) -> 6 | AA16: =MID(VLOOKUP($BN$5&"-"&$BN$3,'DETTAGLIO VERSAMENTO'!$B$9:$R$2008,17,FALSE),1,1) -> Z | AC16: =MID(VLOOKUP($BN$5&"-"&$BN$3,'DETTAGLIO VERSAMENTO'!$B$9:$R$2008,17,FALSE),2,1) -> Z | AE16: =MID(VLOOKUP($BN$5&"-"&$BN$3,'DETTAGLIO VERSAMENTO'!$B$9:$R$2008,17,FALSE),3,1) -> Z | AG16: =MID(VLOOKUP($BN$5&"-"&$BN$3,'DETTAGLIO VERSAMENTO'!$B$9:$R$2008,17,FALSE),4,1) -> 9 | AI16: =MID(VLOOKUP($BN$5&"-"&$BN$3,'DETTAGLIO VERSAMENTO'!$B$9:$R$2008,17,FALSE),5,1) -> 9 | AK16: =MID(VLOOKUP($BN$5&"-"&$BN$3,'DETTAGLIO VERSAMENTO'!$B$9:$R$2008,17,FALSE),6,1) -> 9 | AM16: =MID(VLOOKUP($BN$5&"-"&$BN$3,'DETTAGLIO VERSAMENTO'!$B$9:$R$2008,17,FALSE),7,1) -> X | AO16: =MID(VLOOKUP($BN$5&"-"&$BN$3,'DETTAGLIO VERSAMENTO'!$B$9:$R$2008,17,FALSE),8,1) -> X | AQ16: =MID(VLOOKUP($BN$5&"-"&$BN$3,'DETTAGLIO VERSAMENTO'!$B$9:$R$2008,17,FALSE),9,1) -> X | AS16: =MID(VLOOKUP($BN$5&"-"&$BN$3,'DETTAGLIO VERSAMENTO'!$B$9:$R$2008,17,FALSE),10,1) ->  | AU16: =MID(VLOOKUP($BN$5&"-"&$BN$3,'DETTAGLIO VERSAMENTO'!$B$9:$R$2008,17,FALSE),11,1) ->  | AW16: =MID(VLOOKUP($BN$5&"-"&$BN$3,'DETTAGLIO VERSAMENTO'!$B$9:$R$2008,17,FALSE),12,1) ->  | AY16: =MID(VLOOKUP($BN$5&"-"&$BN$3,'DETTAGLIO VERSAMENTO'!$B$9:$R$2008,17,FALSE),13,1) ->  | BA16: =MID(VLOOKUP($BN$5&"-"&$BN$3,'DETTAGLIO VERSAMENTO'!$B$9:$R$2008,17,FALSE),14,1) ->  | BC16: =MID(VLOOKUP($BN$5&"-"&$BN$3,'DETTAGLIO VERSAMENTO'!$B$9:$R$2008,17,FALSE),15,1) ->  | BE16: =MID(VLOOKUP($BN$5&"-"&$BN$3,'DETTAGLIO VERSAMENTO'!$B$9:$R$2008,17,FALSE),16,1) ->  | BG16: =MID(VLOOKUP($BN$5&"-"&$BN$3,'DETTAGLIO VERSAMENTO'!$B$9:$R$2008,17,FALSE),17,1) ->  | BI16: =MID(VLOOKUP($BN$5&"-"&$BN$3,'DETTAGLIO VERSAMENTO'!$B$9:$R$2008,17,FALSE),18,1) -> 
BN17: Note
A18: 1 | C18: =VLOOKUP($BN$5&"-"&$BN$3&"-"&A18,'DETTAGLIO VERSAMENTO'!$C$9:$G$2008,5,FALSE) -> 0003 | P18: =VLOOKUP($BN$5&"-"&$BN$3&"-"&A18,'DETTAGLIO VERSAMENTO'!$C$9:$H$2008,6,FALSE) -> 01 01 | S18: =VLOOKUP($BN$5&"-"&$BN$3&"-"&A18,'DETTAGLIO VERSAMENTO'!$C$9:$I$2008,7,FALSE) -> 2020 | V18: =VLOOKUP($BN$5&"-"&$BN$3&"-"&A18,'DETTAGLIO VERSAMENTO'!$C$9:$J$2008,8,FALSE) -> 12345678 | AJ18: =VLOOKUP($BN$5&"-"&$BN$3&"-"&A18,'DETTAGLIO VERSAMENTO'!$C$9:$K$2008,9,FALSE) -> 51487 | AQ18: =VLOOKUP($BN$5&"-"&$BN$3&"-"&A18,'DETTAGLIO VERSAMENTO'!$C$9:$L$2008,10,FALSE) -> 125 | AX18: =FLOOR(VLOOKUP($BN$5&"-"&$BN$3&"-"&A18,'DETTAGLIO VERSAMENTO'!$C$9:$M$2008,11,FALSE),1) -> 12345 | BJ18: =LEFT(RIGHT(TEXT(VLOOKUP($BN$5&"-"&$BN$3&"-"&A18,'DETTAGLIO VERSAMENTO'!$C$9:$M$2008,11,FALSE),"0,00"),2),1) -> 9 | BL18: =RIGHT(TEXT(VLOOKUP($BN$5&"-"&$BN$3&"-"&A18,'DETTAGLIO VERSAMENTO'!$C$9:$M$2008,11,FALSE),"0,00"),1) -> 8 | BN18: =VLOOKUP($BN$5&"-"&$BN$3&"-"&A18,'DETTAGLIO VERSAMENTO'!$C$9:$AA$2008,25,FALSE) -> Testo Libero
A19: 2 | C19: =VLOOKUP($BN$5&"-"&$BN$3&"-"&A19,'DETTAGLIO VERSAMENTO'!$C$9:$G$2008,5,FALSE) ->  | P19: =VLOOKUP($BN$5&"-"&$BN$3&"-"&A19,'DETTAGLIO VERSAMENTO'!$C$9:$H$2008,6,FALSE) ->  | S19: =VLOOKUP($BN$5&"-"&$BN$3&"-"&A19,'DETTAGLIO VERSAMENTO'!$C$9:$I$2008,7,FALSE) ->  | V19: =VLOOKUP($BN$5&"-"&$BN$3&"-"&A19,'DETTAGLIO VERSAMENTO'!$C$9:$J$2008,8,FALSE) ->  | AJ19: =VLOOKUP($BN$5&"-"&$BN$3&"-"&A19,'DETTAGLIO VERSAMENTO'!$C$9:$K$2008,9,FALSE) ->  | AQ19: =VLOOKUP($BN$5&"-"&$BN$3&"-"&A19,'DETTAGLIO VERSAMENTO'!$C$9:$L$2008,10,FALSE) ->  | AX19: =FLOOR(VLOOKUP($BN$5&"-"&$BN$3&"-"&A19,'DETTAGLIO VERSAMENTO'!$C$9:$M$2008,11,FALSE),1) ->  | BJ19: =LEFT(RIGHT(TEXT(VLOOKUP($BN$5&"-"&$BN$3&"-"&A19,'DETTAGLIO VERSAMENTO'!$C$9:$M$2008,11,FALSE),"0,00"),2),1) ->  | BL19: =RIGHT(TEXT(VLOOKUP($BN$5&"-"&$BN$3&"-"&A19,'DETTAGLIO VERSAMENTO'!$C$9:$M$2008,11,FALSE),"0,00"),1) ->  | BN19: =VLOOKUP($BN$5&"-"&$BN$3&"-"&A19,'DETTAGLIO VERSAMENTO'!$C$9:$AA$2008,25,FALSE) -> 
A20: 3 | C20: =VLOOKUP($BN$5&"-"&$BN$3&"-"&A20,'DETTAGLIO VERSAMENTO'!$C$9:$G$2008,5,FALSE) ->  | P20: =VLOOKUP($BN$5&"-"&$BN$3&"-"&A20,'DETTAGLIO VERSAMENTO'!$C$9:$H$2008,6,FALSE) ->  | S20: =VLOOKUP($BN$5&"-"&$BN$3&"-"&A20,'DETTAGLIO VERSAMENTO'!$C$9:$I$2008,7,FALSE) ->  | V20: =VLOOKUP($BN$5&"-"&$BN$3&"-"&A20,'DETTAGLIO VERSAMENTO'!$C$9:$J$2008,8,FALSE) ->  | AJ20: =VLOOKUP($BN$5&"-"&$BN$3&"-"&A20,'DETTAGLIO VERSAMENTO'!$C$9:$K$2008,9,FALSE) ->  | AQ20: =VLOOKUP($BN$5&"-"&$BN$3&"-"&A20,'DETTAGLIO VERSAMENTO'!$C$9:$L$2008,10,FALSE) ->  | AX20: =FLOOR(VLOOKUP($BN$5&"-"&$BN$3&"-"&A20,'DETTAGLIO VERSAMENTO'!$C$9:$M$2008,11,FALSE),1) ->  | BJ20: =LEFT(RIGHT(TEXT(VLOOKUP($BN$5&"-"&$BN$3&"-"&A20,'DETTAGLIO VERSAMENTO'!$C$9:$M$2008,11,FALSE),"0,00"),2),1) ->  | BL20: =RIGHT(TEXT(VLOOKUP($BN$5&"-"&$BN$3&"-"&A20,'DETTAGLIO VERSAMENTO'!$C$9:$M$2008,11,FALSE),"0,00"),1) ->  | BN20: =VLOOKUP($BN$5&"-"&$BN$3&"-"&A20,'DETTAGLIO VERSAMENTO'!$C$9:$AA$2008,25,FALSE) -> 
A21: 4 | C21: =VLOOKUP($BN$5&"-"&$BN$3&"-"&A21,'DETTAGLIO VERSAMENTO'!$C$9:$G$2008,5,FALSE) ->  | P21: =VLOOKUP($BN$5&"-"&$BN$3&"-"&A21,'DETTAGLIO VERSAMENTO'!$C$9:$H$2008,6,FALSE) ->  | S21: =VLOOKUP($BN$5&"-"&$BN$3&"-"&A21,'DETTAGLIO VERSAMENTO'!$C$9:$I$2008,7,FALSE) ->  | V21: =VLOOKUP($BN$5&"-"&$BN$3&"-"&A21,'DETTAGLIO VERSAMENTO'!$C$9:$J$2008,8,FALSE) ->  | AJ21: =VLOOKUP($BN$5&"-"&$BN$3&"-"&A21,'DETTAGLIO VERSAMENTO'!$C$9:$K$2008,9,FALSE) ->  | AQ21: =VLOOKUP($BN$5&"-"&$BN$3&"-"&A21,'DETTAGLIO VERSAMENTO'!$C$9:$L$2008,10,FALSE) ->  | AX21: =FLOOR(VLOOKUP($BN$5&"-"&$BN$3&"-"&A21,'DETTAGLIO VERSAMENTO'!$C$9:$M$2008,11,FALSE),1) ->  | BJ21: =LEFT(RIGHT(TEXT(VLOOKUP($BN$5&"-"&$BN$3&"-"&A21,'DETTAGLIO VERSAMENTO'!$C$9:$M$2008,11,FALSE),"0,00"),2),1) ->  | BL21: =RIGHT(TEXT(VLOOKUP($BN$5&"-"&$BN$3&"-"&A21,'DETTAGLIO VERSAMENTO'!$C$9:$M$2008,11,FALSE),"0,00"),1) ->  | BN21: =VLOOKUP($BN$5&"-"&$BN$3&"-"&A21,'DETTAGLIO VERSAMENTO'!$C$9:$AA$2008,25,FALSE) -> 
A22: 5 | C22: =VLOOKUP($BN$5&"-"&$BN$3&"-"&A22,'DETTAGLIO VERSAMENTO'!$C$9:$G$2008,5,FALSE) ->  | P22: =VLOOKUP($BN$5&"-"&$BN$3&"-"&A22,'DETTAGLIO VERSAMENTO'!$C$9:$H$2008,6,FALSE) ->  | S22: =VLOOKUP($BN$5&"-"&$BN$3&"-"&A22,'DETTAGLIO VERSAMENTO'!$C$9:$I$2008,7,FALSE) ->  | V22: =VLOOKUP($BN$5&"-"&$BN$3&"-"&A22,'DETTAGLIO VERSAMENTO'!$C$9:$J$2008,8,FALSE) ->  | AJ22: =VLOOKUP($BN$5&"-"&$BN$3&"-"&A22,'DETTAGLIO VERSAMENTO'!$C$9:$K$2008,9,FALSE) ->  | AQ22: =VLOOKUP($BN$5&"-"&$BN$3&"-"&A22,'DETTAGLIO VERSAMENTO'!$C$9:$L$2008,10,FALSE) ->  | AX22: =FLOOR(VLOOKUP($BN$5&"-"&$BN$3&"-"&A22,'DETTAGLIO VERSAMENTO'!$C$9:$M$2008,11,FALSE),1) ->  | BJ22: =LEFT(RIGHT(TEXT(VLOOKUP($BN$5&"-"&$BN$3&"-"&A22,'DETTAGLIO VERSAMENTO'!$C$9:$M$2008,11,FALSE),"0,00"),2),1) ->  | BL22: =RIGHT(TEXT(VLOOKUP($BN$5&"-"&$BN$3&"-"&A22,'DETTAGLIO VERSAMENTO'!$C$9:$M$2008,11,FALSE),"0,00"),1) ->  | BN22: =VLOOKUP($BN$5&"-"&$BN$3&"-"&A22,'DETTAGLIO VERSAMENTO'!$C$9:$AA$2008,25,FALSE) -> 
A23: 6 | C23: =VLOOKUP($BN$5&"-"&$BN$3&"-"&A23,'DETTAGLIO VERSAMENTO'!$C$9:$G$2008,5,FALSE) ->  | P23: =VLOOKUP($BN$5&"-"&$BN$3&"-"&A23,'DETTAGLIO VERSAMENTO'!$C$9:$H$2008,6,FALSE) ->  | S23: =VLOOKUP($BN$5&"-"&$BN$3&"-"&A23,'DETTAGLIO VERSAMENTO'!$C$9:$I$2008,7,FALSE) ->  | V23: =VLOOKUP($BN$5&"-"&$BN$3&"-"&A23,'DETTAGLIO VERSAMENTO'!$C$9:$J$2008,8,FALSE) ->  | AJ23: =VLOOKUP($BN$5&"-"&$BN$3&"-"&A23,'DETTAGLIO VERSAMENTO'!$C$9:$K$2008,9,FALSE) ->  | AQ23: =VLOOKUP($BN$5&"-"&$BN$3&"-"&A23,'DETTAGLIO VERSAMENTO'!$C$9:$L$2008,10,FALSE) ->  | AX23: =FLOOR(VLOOKUP($BN$5&"-"&$BN$3&"-"&A23,'DETTAGLIO VERSAMENTO'!$C$9:$M$2008,11,FALSE),1) ->  | BJ23: =LEFT(RIGHT(TEXT(VLOOKUP($BN$5&"-"&$BN$3&"-"&A23,'DETTAGLIO VERSAMENTO'!$C$9:$M$2008,11,FALSE),"0,00"),2),1) ->  | BL23: =RIGHT(TEXT(VLOOKUP($BN$5&"-"&$BN$3&"-"&A23,'DETTAGLIO VERSAMENTO'!$C$9:$M$2008,11,FALSE),"0,00"),1) ->  | BN23: =VLOOKUP($BN$5&"-"&$BN$3&"-"&A23,'DETTAGLIO VERSAMENTO'!$C$9:$AA$2008,25,FALSE) -> 
A24: 7 | C24: =VLOOKUP($BN$5&"-"&$BN$3&"-"&A24,'DETTAGLIO VERSAMENTO'!$C$9:$G$2008,5,FALSE) ->  | P24: =VLOOKUP($BN$5&"-"&$BN$3&"-"&A24,'DETTAGLIO VERSAMENTO'!$C$9:$H$2008,6,FALSE) ->  | S24: =VLOOKUP($BN$5&"-"&$BN$3&"-"&A24,'DETTAGLIO VERSAMENTO'!$C$9:$I$2008,7,FALSE) ->  | V24: =VLOOKUP($BN$5&"-"&$BN$3&"-"&A24,'DETTAGLIO VERSAMENTO'!$C$9:$J$2008,8,FALSE) ->  | AJ24: =VLOOKUP($BN$5&"-"&$BN$3&"-"&A24,'DETTAGLIO VERSAMENTO'!$C$9:$K$2008,9,FALSE) ->  | AQ24: =VLOOKUP($BN$5&"-"&$BN$3&"-"&A24,'DETTAGLIO VERSAMENTO'!$C$9:$L$2008,10,FALSE) ->  | AX24: =FLOOR(VLOOKUP($BN$5&"-"&$BN$3&"-"&A24,'DETTAGLIO VERSAMENTO'!$C$9:$M$2008,11,FALSE),1) ->  | BJ24: =LEFT(RIGHT(TEXT(VLOOKUP($BN$5&"-"&$BN$3&"-"&A24,'DETTAGLIO VERSAMENTO'!$C$9:$M$2008,11,FALSE),"0,00"),2),1) ->  | BL24: =RIGHT(TEXT(VLOOKUP($BN$5&"-"&$BN$3&"-"&A24,'DETTAGLIO VERSAMENTO'!$C$9:$M$2008,11,FALSE),"0,00"),1) ->  | BN24: =VLOOKUP($BN$5&"-"&$BN$3&"-"&A24,'DETTAGLIO VERSAMENTO'!$C$9:$AA$2008,25,FALSE) -> 
A25: 8 | C25: =VLOOKUP($BN$5&"-"&$BN$3&"-"&A25,'DETTAGLIO VERSAMENTO'!$C$9:$G$2008,5,FALSE) ->  | P25: =VLOOKUP($BN$5&"-"&$BN$3&"-"&A25,'DETTAGLIO VERSAMENTO'!$C$9:$H$2008,6,FALSE) ->  | S25: =VLOOKUP($BN$5&"-"&$BN$3&"-"&A25,'DETTAGLIO VERSAMENTO'!$C$9:$I$2008,7,FALSE) ->  | V25: =VLOOKUP($BN$5&"-"&$BN$3&"-"&A25,'DETTAGLIO VERSAMENTO'!$C$9:$J$2008,8,FALSE) ->  | AJ25: =VLOOKUP($BN$5&"-"&$BN$3&"-"&A25,'DETTAGLIO VERSAMENTO'!$C$9:$K$2008,9,FALSE) ->  | AQ25: =VLOOKUP($BN$5&"-"&$BN$3&"-"&A25,'DETTAGLIO VERSAMENTO'!$C$9:$L$2008,10,FALSE) ->  | AX25: =FLOOR(VLOOKUP($BN$5&"-"&$BN$3&"-"&A25,'DETTAGLIO VERSAMENTO'!$C$9:$M$2008,11,FALSE),1) ->  | BJ25: =LEFT(RIGHT(TEXT(VLOOKUP($BN$5&"-"&$BN$3&"-"&A25,'DETTAGLIO VERSAMENTO'!$C$9:$M$2008,11,FALSE),"0,00"),2),1) ->  | BL25: =RIGHT(TEXT(VLOOKUP($BN$5&"-"&$BN$3&"-"&A25,'DETTAGLIO VERSAMENTO'!$C$9:$M$2008,11,FALSE),"0,00"),1) ->  | BN25: =VLOOKUP($BN$5&"-"&$BN$3&"-"&A25,'DETTAGLIO VERSAMENTO'!$C$9:$AA$2008,25,FALSE) -> 
A26: 9 | C26: =VLOOKUP($BN$5&"-"&$BN$3&"-"&A26,'DETTAGLIO VERSAMENTO'!$C$9:$G$2008,5,FALSE) ->  | P26: =VLOOKUP($BN$5&"-"&$BN$3&"-"&A26,'DETTAGLIO VERSAMENTO'!$C$9:$H$2008,6,FALSE) ->  | S26: =VLOOKUP($BN$5&"-"&$BN$3&"-"&A26,'DETTAGLIO VERSAMENTO'!$C$9:$I$2008,7,FALSE) ->  | V26: =VLOOKUP($BN$5&"-"&$BN$3&"-"&A26,'DETTAGLIO VERSAMENTO'!$C$9:$J$2008,8,FALSE) ->  | AJ26: =VLOOKUP($BN$5&"-"&$BN$3&"-"&A26,'DETTAGLIO VERSAMENTO'!$C$9:$K$2008,9,FALSE) ->  | AQ26: =VLOOKUP($BN$5&"-"&$BN$3&"-"&A26,'DETTAGLIO VERSAMENTO'!$C$9:$L$2008,10,FALSE) ->  | AX26: =FLOOR(VLOOKUP($BN$5&"-"&$BN$3&"-"&A26,'DETTAGLIO VERSAMENTO'!$C$9:$M$2008,11,FALSE),1) ->  | BJ26: =LEFT(RIGHT(TEXT(VLOOKUP($BN$5&"-"&$BN$3&"-"&A26,'DETTAGLIO VERSAMENTO'!$C$9:$M$2008,11,FALSE),"0,00"),2),1) ->  | BL26: =RIGHT(TEXT(VLOOKUP($BN$5&"-"&$BN$3&"-"&A26,'DETTAGLIO VERSAMENTO'!$C$9:$M$2008,11,FALSE),"0,00"),1) ->  | BN26: =VLOOKUP($BN$5&"-"&$BN$3&"-"&A26,'DETTAGLIO VERSAMENTO'!$C$9:$AA$2008,25,FALSE) -> 
A27: 10 | C27: =VLOOKUP($BN$5&"-"&$BN$3&"-"&A27,'DETTAGLIO VERSAMENTO'!$C$9:$G$2008,5,FALSE) ->  | P27: =VLOOKUP($BN$5&"-"&$BN$3&"-"&A27,'DETTAGLIO VERSAMENTO'!$C$9:$H$2008,6,FALSE) ->  | S27: =VLOOKUP($BN$5&"-"&$BN$3&"-"&A27,'DETTAGLIO VERSAMENTO'!$C$9:$I$2008,7,FALSE) ->  | V27: =VLOOKUP($BN$5&"-"&$BN$3&"-"&A27,'DETTAGLIO VERSAMENTO'!$C$9:$J$2008,8,FALSE) ->  | AJ27: =VLOOKUP($BN$5&"-"&$BN$3&"-"&A27,'DETTAGLIO VERSAMENTO'!$C$9:$K$2008,9,FALSE) ->  | AQ27: =VLOOKUP($BN$5&"-"&$BN$3&"-"&A27,'DETTAGLIO VERSAMENTO'!$C$9:$L$2008,10,FALSE) ->  | AX27: =FLOOR(VLOOKUP($BN$5&"-"&$BN$3&"-"&A27,'DETTAGLIO VERSAMENTO'!$C$9:$M$2008,11,FALSE),1) ->  | BJ27: =LEFT(RIGHT(TEXT(VLOOKUP($BN$5&"-"&$BN$3&"-"&A27,'DETTAGLIO VERSAMENTO'!$C$9:$M$2008,11,FALSE),"0,00"),2),1) ->  | BL27: =RIGHT(TEXT(VLOOKUP($BN$5&"-"&$BN$3&"-"&A27,'DETTAGLIO VERSAMENTO'!$C$9:$M$2008,11,FALSE),"0,00"),1) ->  | BN27: =VLOOKUP($BN$5&"-"&$BN$3&"-"&A27,'DETTAGLIO VERSAMENTO'!$C$9:$AA$2008,25,FALSE) -> 
A28: 11 | C28: =VLOOKUP($BN$5&"-"&$BN$3&"-"&A28,'DETTAGLIO VERSAMENTO'!$C$9:$G$2008,5,FALSE) ->  | P28: =VLOOKUP($BN$5&"-"&$BN$3&"-"&A28,'DETTAGLIO VERSAMENTO'!$C$9:$H$2008,6,FALSE) ->  | S28: =VLOOKUP($BN$5&"-"&$BN$3&"-"&A28,'DETTAGLIO VERSAMENTO'!$C$9:$I$2008,7,FALSE) ->  | V28: =VLOOKUP($BN$5&"-"&$BN$3&"-"&A28,'DETTAGLIO VERSAMENTO'!$C$9:$J$2008,8,FALSE) ->  | AJ28: =VLOOKUP($BN$5&"-"&$BN$3&"-"&A28,'DETTAGLIO VERSAMENTO'!$C$9:$K$2008,9,FALSE) ->  | AQ28: =VLOOKUP($BN$5&"-"&$BN$3&"-"&A28,'DETTAGLIO VERSAMENTO'!$C$9:$L$2008,10,FALSE) ->  | AX28: =FLOOR(VLOOKUP($BN$5&"-"&$BN$3&"-"&A28,'DETTAGLIO VERSAMENTO'!$C$9:$M$2008,11,FALSE),1) ->  | BJ28: =LEFT(RIGHT(TEXT(VLOOKUP($BN$5&"-"&$BN$3&"-"&A28,'DETTAGLIO VERSAMENTO'!$C$9:$M$2008,11,FALSE),"0,00"),2),1) ->  | BL28: =RIGHT(TEXT(VLOOKUP($BN$5&"-"&$BN$3&"-"&A28,'DETTAGLIO VERSAMENTO'!$C$9:$M$2008,11,FALSE),"0,00"),1) ->  | BN28: =VLOOKUP($BN$5&"-"&$BN$3&"-"&A28,'DETTAGLIO VERSAMENTO'!$C$9:$AA$2008,25,FALSE) -> 
A29: 12 | C29: =VLOOKUP($BN$5&"-"&$BN$3&"-"&A29,'DETTAGLIO VERSAMENTO'!$C$9:$G$2008,5,FALSE) ->  | P29: =VLOOKUP($BN$5&"-"&$BN$3&"-"&A29,'DETTAGLIO VERSAMENTO'!$C$9:$H$2008,6,FALSE) ->  | S29: =VLOOKUP($BN$5&"-"&$BN$3&"-"&A29,'DETTAGLIO VERSAMENTO'!$C$9:$I$2008,7,FALSE) ->  | V29: =VLOOKUP($BN$5&"-"&$BN$3&"-"&A29,'DETTAGLIO VERSAMENTO'!$C$9:$J$2008,8,FALSE) ->  | AJ29: =VLOOKUP($BN$5&"-"&$BN$3&"-"&A29,'DETTAGLIO VERSAMENTO'!$C$9:$K$2008,9,FALSE) ->  | AQ29: =VLOOKUP($BN$5&"-"&$BN$3&"-"&A29,'DETTAGLIO VERSAMENTO'!$C$9:$L$2008,10,FALSE) ->  | AX29: =FLOOR(VLOOKUP($BN$5&"-"&$BN$3&"-"&A29,'DETTAGLIO VERSAMENTO'!$C$9:$M$2008,11,FALSE),1) ->  | BJ29: =LEFT(RIGHT(TEXT(VLOOKUP($BN$5&"-"&$BN$3&"-"&A29,'DETTAGLIO VERSAMENTO'!$C$9:$M$2008,11,FALSE),"0,00"),2),1) ->  | BL29: =RIGHT(TEXT(VLOOKUP($BN$5&"-"&$BN$3&"-"&A29,'DETTAGLIO VERSAMENTO'!$C$9:$M$2008,11,FALSE),"0,00"),1) ->  | BN29: =VLOOKUP($BN$5&"-"&$BN$3&"-"&A29,'DETTAGLIO VERSAMENTO'!$C$9:$AA$2008,25,FALSE) -> 
A30: 13 | C30: =VLOOKUP($BN$5&"-"&$BN$3&"-"&A30,'DETTAGLIO VERSAMENTO'!$C$9:$G$2008,5,FALSE) ->  | P30: =VLOOKUP($BN$5&"-"&$BN$3&"-"&A30,'DETTAGLIO VERSAMENTO'!$C$9:$H$2008,6,FALSE) ->  | S30: =VLOOKUP($BN$5&"-"&$BN$3&"-"&A30,'DETTAGLIO VERSAMENTO'!$C$9:$I$2008,7,FALSE) ->  | V30: =VLOOKUP($BN$5&"-"&$BN$3&"-"&A30,'DETTAGLIO VERSAMENTO'!$C$9:$J$2008,8,FALSE) ->  | AJ30: =VLOOKUP($BN$5&"-"&$BN$3&"-"&A30,'DETTAGLIO VERSAMENTO'!$C$9:$K$2008,9,FALSE) ->  | AQ30: =VLOOKUP($BN$5&"-"&$BN$3&"-"&A30,'DETTAGLIO VERSAMENTO'!$C$9:$L$2008,10,FALSE) ->  | AX30: =FLOOR(VLOOKUP($BN$5&"-"&$BN$3&"-"&A30,'DETTAGLIO VERSAMENTO'!$C$9:$M$2008,11,FALSE),1) ->  | BJ30: =LEFT(RIGHT(TEXT(VLOOKUP($BN$5&"-"&$BN$3&"-"&A30,'DETTAGLIO VERSAMENTO'!$C$9:$M$2008,11,FALSE),"0,00"),2),1) ->  | BL30: =RIGHT(TEXT(VLOOKUP($BN$5&"-"&$BN$3&"-"&A30,'DETTAGLIO VERSAMENTO'!$C$9:$M$2008,11,FALSE),"0,00"),1) ->  | BN30: =VLOOKUP($BN$5&"-"&$BN$3&"-"&A30,'DETTAGLIO VERSAMENTO'!$C$9:$AA$2008,25,FALSE) -> 
A31: 14 | C31: =VLOOKUP($BN$5&"-"&$BN$3&"-"&A31,'DETTAGLIO VERSAMENTO'!$C$9:$G$2008,5,FALSE) ->  | P31: =VLOOKUP($BN$5&"-"&$BN$3&"-"&A31,'DETTAGLIO VERSAMENTO'!$C$9:$H$2008,6,FALSE) ->  | S31: =VLOOKUP($BN$5&"-"&$BN$3&"-"&A31,'DETTAGLIO VERSAMENTO'!$C$9:$I$2008,7,FALSE) ->  | V31: =VLOOKUP($BN$5&"-"&$BN$3&"-"&A31,'DETTAGLIO VERSAMENTO'!$C$9:$J$2008,8,FALSE) ->  | AJ31: =VLOOKUP($BN$5&"-"&$BN$3&"-"&A31,'DETTAGLIO VERSAMENTO'!$C$9:$K$2008,9,FALSE) ->  | AQ31: =VLOOKUP($BN$5&"-"&$BN$3&"-"&A31,'DETTAGLIO VERSAMENTO'!$C$9:$L$2008,10,FALSE) ->  | AX31: =FLOOR(VLOOKUP($BN$5&"-"&$BN$3&"-"&A31,'DETTAGLIO VERSAMENTO'!$C$9:$M$2008,11,FALSE),1) ->  | BJ31: =LEFT(RIGHT(TEXT(VLOOKUP($BN$5&"-"&$BN$3&"-"&A31,'DETTAGLIO VERSAMENTO'!$C$9:$M$2008,11,FALSE),"0,00"),2),1) ->  | BL31: =RIGHT(TEXT(VLOOKUP($BN$5&"-"&$BN$3&"-"&A31,'DETTAGLIO VERSAMENTO'!$C$9:$M$2008,11,FALSE),"0,00"),1) ->  | BN31: =VLOOKUP($BN$5&"-"&$BN$3&"-"&A31,'DETTAGLIO VERSAMENTO'!$C$9:$AA$2008,25,FALSE) -> 
A32: 15 | C32: =VLOOKUP($BN$5&"-"&$BN$3&"-"&A32,'DETTAGLIO VERSAMENTO'!$C$9:$G$2008,5,FALSE) ->  | P32: =VLOOKUP($BN$5&"-"&$BN$3&"-"&A32,'DETTAGLIO VERSAMENTO'!$C$9:$H$2008,6,FALSE) ->  | S32: =VLOOKUP($BN$5&"-"&$BN$3&"-"&A32,'DETTAGLIO VERSAMENTO'!$C$9:$I$2008,7,FALSE) ->  | V32: =VLOOKUP($BN$5&"-"&$BN$3&"-"&A32,'DETTAGLIO VERSAMENTO'!$C$9:$J$2008,8,FALSE) ->  | AJ32: =VLOOKUP($BN$5&"-"&$BN$3&"-"&A32,'DETTAGLIO VERSAMENTO'!$C$9:$K$2008,9,FALSE) ->  | AQ32: =VLOOKUP($BN$5&"-"&$BN$3&"-"&A32,'DETTAGLIO VERSAMENTO'!$C$9:$L$2008,10,FALSE) ->  | AX32: =FLOOR(VLOOKUP($BN$5&"-"&$BN$3&"-"&A32,'DETTAGLIO VERSAMENTO'!$C$9:$M$2008,11,FALSE),1) ->  | BJ32: =LEFT(RIGHT(TEXT(VLOOKUP($BN$5&"-"&$BN$3&"-"&A32,'DETTAGLIO VERSAMENTO'!$C$9:$M$2008,11,FALSE),"0,00"),2),1) ->  | BL32: =RIGHT(TEXT(VLOOKUP($BN$5&"-"&$BN$3&"-"&A32,'DETTAGLIO VERSAMENTO'!$C$9:$M$2008,11,FALSE),"0,00"),1) ->  | BN32: =VLOOKUP($BN$5&"-"&$BN$3&"-"&A32,'DETTAGLIO VERSAMENTO'!$C$9:$AA$2008,25,FALSE) -> 
A33: 16 | C33: =VLOOKUP($BN$5&"-"&$BN$3&"-"&A33,'DETTAGLIO VERSAMENTO'!$C$9:$G$2008,5,FALSE) ->  | P33: =VLOOKUP($BN$5&"-"&$BN$3&"-"&A33,'DETTAGLIO VERSAMENTO'!$C$9:$H$2008,6,FALSE) ->  | S33: =VLOOKUP($BN$5&"-"&$BN$3&"-"&A33,'DETTAGLIO VERSAMENTO'!$C$9:$I$2008,7,FALSE) ->  | V33: =VLOOKUP($BN$5&"-"&$BN$3&"-"&A33,'DETTAGLIO VERSAMENTO'!$C$9:$J$2008,8,FALSE) ->  | AJ33: =VLOOKUP($BN$5&"-"&$BN$3&"-"&A33,'DETTAGLIO VERSAMENTO'!$C$9:$K$2008,9,FALSE) ->  | AQ33: =VLOOKUP($BN$5&"-"&$BN$3&"-"&A33,'DETTAGLIO VERSAMENTO'!$C$9:$L$2008,10,FALSE) ->  | AX33: =FLOOR(VLOOKUP($BN$5&"-"&$BN$3&"-"&A33,'DETTAGLIO VERSAMENTO'!$C$9:$M$2008,11,FALSE),1) ->  | BJ33: =LEFT(RIGHT(TEXT(VLOOKUP($BN$5&"-"&$BN$3&"-"&A33,'DETTAGLIO VERSAMENTO'!$C$9:$M$2008,11,FALSE),"0,00"),2),1) ->  | BL33: =RIGHT(TEXT(VLOOKUP($BN$5&"-"&$BN$3&"-"&A33,'DETTAGLIO VERSAMENTO'!$C$9:$M$2008,11,FALSE),"0,00"),1) ->  | BN33: =VLOOKUP($BN$5&"-"&$BN$3&"-"&A33,'DETTAGLIO VERSAMENTO'!$C$9:$AA$2008,25,FALSE) -> 
A34: 17 | C34: =VLOOKUP($BN$5&"-"&$BN$3&"-"&A34,'DETTAGLIO VERSAMENTO'!$C$9:$G$2008,5,FALSE) ->  | P34: =VLOOKUP($BN$5&"-"&$BN$3&"-"&A34,'DETTAGLIO VERSAMENTO'!$C$9:$H$2008,6,FALSE) ->  | S34: =VLOOKUP($BN$5&"-"&$BN$3&"-"&A34,'DETTAGLIO VERSAMENTO'!$C$9:$I$2008,7,FALSE) ->  | V34: =VLOOKUP($BN$5&"-"&$BN$3&"-"&A34,'DETTAGLIO VERSAMENTO'!$C$9:$J$2008,8,FALSE) ->  | AJ34: =VLOOKUP($BN$5&"-"&$BN$3&"-"&A34,'DETTAGLIO VERSAMENTO'!$C$9:$K$2008,9,FALSE) ->  | AQ34: =VLOOKUP($BN$5&"-"&$BN$3&"-"&A34,'DETTAGLIO VERSAMENTO'!$C$9:$L$2008,10,FALSE) ->  | AX34: =FLOOR(VLOOKUP($BN$5&"-"&$BN$3&"-"&A34,'DETTAGLIO VERSAMENTO'!$C$9:$M$2008,11,FALSE),1) ->  | BJ34: =LEFT(RIGHT(TEXT(VLOOKUP($BN$5&"-"&$BN$3&"-"&A34,'DETTAGLIO VERSAMENTO'!$C$9:$M$2008,11,FALSE),"0,00"),2),1) ->  | BL34: =RIGHT(TEXT(VLOOKUP($BN$5&"-"&$BN$3&"-"&A34,'DETTAGLIO VERSAMENTO'!$C$9:$M$2008,11,FALSE),"0,00"),1) ->  | BN34: =VLOOKUP($BN$5&"-"&$BN$3&"-"&A34,'DETTAGLIO VERSAMENTO'!$C$9:$AA$2008,25,FALSE) -> 
A35: 18 | C35: =VLOOKUP($BN$5&"-"&$BN$3&"-"&A35,'DETTAGLIO VERSAMENTO'!$C$9:$G$2008,5,FALSE) ->  | P35: =VLOOKUP($BN$5&"-"&$BN$3&"-"&A35,'DETTAGLIO VERSAMENTO'!$C$9:$H$2008,6,FALSE) ->  | S35: =VLOOKUP($BN$5&"-"&$BN$3&"-"&A35,'DETTAGLIO VERSAMENTO'!$C$9:$I$2008,7,FALSE) ->  | V35: =VLOOKUP($BN$5&"-"&$BN$3&"-"&A35,'DETTAGLIO VERSAMENTO'!$C$9:$J$2008,8,FALSE) ->  | AJ35: =VLOOKUP($BN$5&"-"&$BN$3&"-"&A35,'DETTAGLIO VERSAMENTO'!$C$9:$K$2008,9,FALSE) ->  | AQ35: =VLOOKUP($BN$5&"-"&$BN$3&"-"&A35,'DETTAGLIO VERSAMENTO'!$C$9:$L$2008,10,FALSE) ->  | AX35: =FLOOR(VLOOKUP($BN$5&"-"&$BN$3&"-"&A35,'DETTAGLIO VERSAMENTO'!$C$9:$M$2008,11,FALSE),1) ->  | BJ35: =LEFT(RIGHT(TEXT(VLOOKUP($BN$5&"-"&$BN$3&"-"&A35,'DETTAGLIO VERSAMENTO'!$C$9:$M$2008,11,FALSE),"0,00"),2),1) ->  | BL35: =RIGHT(TEXT(VLOOKUP($BN$5&"-"&$BN$3&"-"&A35,'DETTAGLIO VERSAMENTO'!$C$9:$M$2008,11,FALSE),"0,00"),1) ->  | BN35: =VLOOKUP($BN$5&"-"&$BN$3&"-"&A35,'DETTAGLIO VERSAMENTO'!$C$9:$AA$2008,25,FALSE) -> 
A36: 19 | C36: =VLOOKUP($BN$5&"-"&$BN$3&"-"&A36,'DETTAGLIO VERSAMENTO'!$C$9:$G$2008,5,FALSE) ->  | P36: =VLOOKUP($BN$5&"-"&$BN$3&"-"&A36,'DETTAGLIO VERSAMENTO'!$C$9:$H$2008,6,FALSE) ->  | S36: =VLOOKUP($BN$5&"-"&$BN$3&"-"&A36,'DETTAGLIO VERSAMENTO'!$C$9:$I$2008,7,FALSE) ->  | V36: =VLOOKUP($BN$5&"-"&$BN$3&"-"&A36,'DETTAGLIO VERSAMENTO'!$C$9:$J$2008,8,FALSE) ->  | AJ36: =VLOOKUP($BN$5&"-"&$BN$3&"-"&A36,'DETTAGLIO VERSAMENTO'!$C$9:$K$2008,9,FALSE) ->  | AQ36: =VLOOKUP($BN$5&"-"&$BN$3&"-"&A36,'DETTAGLIO VERSAMENTO'!$C$9:$L$2008,10,FALSE) ->  | AX36: =FLOOR(VLOOKUP($BN$5&"-"&$BN$3&"-"&A36,'DETTAGLIO VERSAMENTO'!$C$9:$M$2008,11,FALSE),1) ->  | BJ36: =LEFT(RIGHT(TEXT(VLOOKUP($BN$5&"-"&$BN$3&"-"&A36,'DETTAGLIO VERSAMENTO'!$C$9:$M$2008,11,FALSE),"0,00"),2),1) ->  | BL36: =RIGHT(TEXT(VLOOKUP($BN$5&"-"&$BN$3&"-"&A36,'DETTAGLIO VERSAMENTO'!$C$9:$M$2008,11,FALSE),"0,00"),1) ->  | BN36: =VLOOKUP($BN$5&"-"&$BN$3&"-"&A36,'DETTAGLIO VERSAMENTO'!$C$9:$AA$2008,25,FALSE) -> 
A37: 20 | C37: =VLOOKUP($BN$5&"-"&$BN$3&"-"&A37,'DETTAGLIO VERSAMENTO'!$C$9:$G$2008,5,FALSE) ->  | P37: =VLOOKUP($BN$5&"-"&$BN$3&"-"&A37,'DETTAGLIO VERSAMENTO'!$C$9:$H$2008,6,FALSE) ->  | S37: =VLOOKUP($BN$5&"-"&$BN$3&"-"&A37,'DETTAGLIO VERSAMENTO'!$C$9:$I$2008,7,FALSE) ->  | V37: =VLOOKUP($BN$5&"-"&$BN$3&"-"&A37,'DETTAGLIO VERSAMENTO'!$C$9:$J$2008,8,FALSE) ->  | AJ37: =VLOOKUP($BN$5&"-"&$BN$3&"-"&A37,'DETTAGLIO VERSAMENTO'!$C$9:$K$2008,9,FALSE) ->  | AQ37: =VLOOKUP($BN$5&"-"&$BN$3&"-"&A37,'DETTAGLIO VERSAMENTO'!$C$9:$L$2008,10,FALSE) ->  | AX37: =FLOOR(VLOOKUP($BN$5&"-"&$BN$3&"-"&A37,'DETTAGLIO VERSAMENTO'!$C$9:$M$2008,11,FALSE),1) ->  | BJ37: =LEFT(RIGHT(TEXT(VLOOKUP($BN$5&"-"&$BN$3&"-"&A37,'DETTAGLIO VERSAMENTO'!$C$9:$M$2008,11,FALSE),"0,00"),2),1) ->  | BL37: =RIGHT(TEXT(VLOOKUP($BN$5&"-"&$BN$3&"-"&A37,'DETTAGLIO VERSAMENTO'!$C$9:$M$2008,11,FALSE),"0,00"),1) ->  | BN37: =VLOOKUP($BN$5&"-"&$BN$3&"-"&A37,'DETTAGLIO VERSAMENTO'!$C$9:$AA$2008,25,FALSE) -> 
A38: 21 | C38: =VLOOKUP($BN$5&"-"&$BN$3&"-"&A38,'DETTAGLIO VERSAMENTO'!$C$9:$G$2008,5,FALSE) ->  | P38: =VLOOKUP($BN$5&"-"&$BN$3&"-"&A38,'DETTAGLIO VERSAMENTO'!$C$9:$H$2008,6,FALSE) ->  | S38: =VLOOKUP($BN$5&"-"&$BN$3&"-"&A38,'DETTAGLIO VERSAMENTO'!$C$9:$I$2008,7,FALSE) ->  | V38: =VLOOKUP($BN$5&"-"&$BN$3&"-"&A38,'DETTAGLIO VERSAMENTO'!$C$9:$J$2008,8,FALSE) ->  | AJ38: =VLOOKUP($BN$5&"-"&$BN$3&"-"&A38,'DETTAGLIO VERSAMENTO'!$C$9:$K$2008,9,FALSE) ->  | AQ38: =VLOOKUP($BN$5&"-"&$BN$3&"-"&A38,'DETTAGLIO VERSAMENTO'!$C$9:$L$2008,10,FALSE) ->  | AX38: =FLOOR(VLOOKUP($BN$5&"-"&$BN$3&"-"&A38,'DETTAGLIO VERSAMENTO'!$C$9:$M$2008,11,FALSE),1) ->  | BJ38: =LEFT(RIGHT(TEXT(VLOOKUP($BN$5&"-"&$BN$3&"-"&A38,'DETTAGLIO VERSAMENTO'!$C$9:$M$2008,11,FALSE),"0,00"),2),1) ->  | BL38: =RIGHT(TEXT(VLOOKUP($BN$5&"-"&$BN$3&"-"&A38,'DETTAGLIO VERSAMENTO'!$C$9:$M$2008,11,FALSE),"0,00"),1) ->  | BN38: =VLOOKUP($BN$5&"-"&$BN$3&"-"&A38,'DETTAGLIO VERSAMENTO'!$C$9:$AA$2008,25,FALSE) -> 
A39: 22 | C39: =VLOOKUP($BN$5&"-"&$BN$3&"-"&A39,'DETTAGLIO VERSAMENTO'!$C$9:$G$2008,5,FALSE) ->  | P39: =VLOOKUP($BN$5&"-"&$BN$3&"-"&A39,'DETTAGLIO VERSAMENTO'!$C$9:$H$2008,6,FALSE) ->  | S39: =VLOOKUP($BN$5&"-"&$BN$3&"-"&A39,'DETTAGLIO VERSAMENTO'!$C$9:$I$2008,7,FALSE) ->  | V39: =VLOOKUP($BN$5&"-"&$BN$3&"-"&A39,'DETTAGLIO VERSAMENTO'!$C$9:$J$2008,8,FALSE) ->  | AJ39: =VLOOKUP($BN$5&"-"&$BN$3&"-"&A39,'DETTAGLIO VERSAMENTO'!$C$9:$K$2008,9,FALSE) ->  | AQ39: =VLOOKUP($BN$5&"-"&$BN$3&"-"&A39,'DETTAGLIO VERSAMENTO'!$C$9:$L$2008,10,FALSE) ->  | AX39: =FLOOR(VLOOKUP($BN$5&"-"&$BN$3&"-"&A39,'DETTAGLIO VERSAMENTO'!$C$9:$M$2008,11,FALSE),1) ->  | BJ39: =LEFT(RIGHT(TEXT(VLOOKUP($BN$5&"-"&$BN$3&"-"&A39,'DETTAGLIO VERSAMENTO'!$C$9:$M$2008,11,FALSE),"0,00"),2),1) ->  | BL39: =RIGHT(TEXT(VLOOKUP($BN$5&"-"&$BN$3&"-"&A39,'DETTAGLIO VERSAMENTO'!$C$9:$M$2008,11,FALSE),"0,00"),1) ->  | BN39: =VLOOKUP($BN$5&"-"&$BN$3&"-"&A39,'DETTAGLIO VERSAMENTO'!$C$9:$AA$2008,25,FALSE) -> 
A40: 23 | C40: =VLOOKUP($BN$5&"-"&$BN$3&"-"&A40,'DETTAGLIO VERSAMENTO'!$C$9:$G$2008,5,FALSE) ->  | P40: =VLOOKUP($BN$5&"-"&$BN$3&"-"&A40,'DETTAGLIO VERSAMENTO'!$C$9:$H$2008,6,FALSE) ->  | S40: =VLOOKUP($BN$5&"-"&$BN$3&"-"&A40,'DETTAGLIO VERSAMENTO'!$C$9:$I$2008,7,FALSE) ->  | V40: =VLOOKUP($BN$5&"-"&$BN$3&"-"&A40,'DETTAGLIO VERSAMENTO'!$C$9:$J$2008,8,FALSE) ->  | AJ40: =VLOOKUP($BN$5&"-"&$BN$3&"-"&A40,'DETTAGLIO VERSAMENTO'!$C$9:$K$2008,9,FALSE) ->  | AQ40: =VLOOKUP($BN$5&"-"&$BN$3&"-"&A40,'DETTAGLIO VERSAMENTO'!$C$9:$L$2008,10,FALSE) ->  | AX40: =FLOOR(VLOOKUP($BN$5&"-"&$BN$3&"-"&A40,'DETTAGLIO VERSAMENTO'!$C$9:$M$2008,11,FALSE),1) ->  | BJ40: =LEFT(RIGHT(TEXT(VLOOKUP($BN$5&"-"&$BN$3&"-"&A40,'DETTAGLIO VERSAMENTO'!$C$9:$M$2008,11,FALSE),"0,00"),2),1) ->  | BL40: =RIGHT(TEXT(VLOOKUP($BN$5&"-"&$BN$3&"-"&A40,'DETTAGLIO VERSAMENTO'!$C$9:$M$2008,11,FALSE),"0,00"),1) ->  | BN40: =VLOOKUP($BN$5&"-"&$BN$3&"-"&A40,'DETTAGLIO VERSAMENTO'!$C$9:$AA$2008,25,FALSE) -> 
A41: 24 | C41: =VLOOKUP($BN$5&"-"&$BN$3&"-"&A41,'DETTAGLIO VERSAMENTO'!$C$9:$G$2008,5,FALSE) ->  | P41: =VLOOKUP($BN$5&"-"&$BN$3&"-"&A41,'DETTAGLIO VERSAMENTO'!$C$9:$H$2008,6,FALSE) ->  | S41: =VLOOKUP($BN$5&"-"&$BN$3&"-"&A41,'DETTAGLIO VERSAMENTO'!$C$9:$I$2008,7,FALSE) ->  | V41: =VLOOKUP($BN$5&"-"&$BN$3&"-"&A41,'DETTAGLIO VERSAMENTO'!$C$9:$J$2008,8,FALSE) ->  | AJ41: =VLOOKUP($BN$5&"-"&$BN$3&"-"&A41,'DETTAGLIO VERSAMENTO'!$C$9:$K$2008,9,FALSE) ->  | AQ41: =VLOOKUP($BN$5&"-"&$BN$3&"-"&A41,'DETTAGLIO VERSAMENTO'!$C$9:$L$2008,10,FALSE) ->  | AX41: =FLOOR(VLOOKUP($BN$5&"-"&$BN$3&"-"&A41,'DETTAGLIO VERSAMENTO'!$C$9:$M$2008,11,FALSE),1) ->  | BJ41: =LEFT(RIGHT(TEXT(VLOOKUP($BN$5&"-"&$BN$3&"-"&A41,'DETTAGLIO VERSAMENTO'!$C$9:$M$2008,11,FALSE),"0,00"),2),1) ->  | BL41: =RIGHT(TEXT(VLOOKUP($BN$5&"-"&$BN$3&"-"&A41,'DETTAGLIO VERSAMENTO'!$C$9:$M$2008,11,FALSE),"0,00"),1) ->  | BN41: =VLOOKUP($BN$5&"-"&$BN$3&"-"&A41,'DETTAGLIO VERSAMENTO'!$C$9:$AA$2008,25,FALSE) -> 
A42: 25 | C42: =VLOOKUP($BN$5&"-"&$BN$3&"-"&A42,'DETTAGLIO VERSAMENTO'!$C$9:$G$2008,5,FALSE) ->  | P42: =VLOOKUP($BN$5&"-"&$BN$3&"-"&A42,'DETTAGLIO VERSAMENTO'!$C$9:$H$2008,6,FALSE) ->  | S42: =VLOOKUP($BN$5&"-"&$BN$3&"-"&A42,'DETTAGLIO VERSAMENTO'!$C$9:$I$2008,7,FALSE) ->  | V42: =VLOOKUP($BN$5&"-"&$BN$3&"-"&A42,'DETTAGLIO VERSAMENTO'!$C$9:$J$2008,8,FALSE) ->  | AJ42: =VLOOKUP($BN$5&"-"&$BN$3&"-"&A42,'DETTAGLIO VERSAMENTO'!$C$9:$K$2008,9,FALSE) ->  | AQ42: =VLOOKUP($BN$5&"-"&$BN$3&"-"&A42,'DETTAGLIO VERSAMENTO'!$C$9:$L$2008,10,FALSE) ->  | AX42: =FLOOR(VLOOKUP($BN$5&"-"&$BN$3&"-"&A42,'DETTAGLIO VERSAMENTO'!$C$9:$M$2008,11,FALSE),1) ->  | BJ42: =LEFT(RIGHT(TEXT(VLOOKUP($BN$5&"-"&$BN$3&"-"&A42,'DETTAGLIO VERSAMENTO'!$C$9:$M$2008,11,FALSE),"0,00"),2),1) ->  | BL42: =RIGHT(TEXT(VLOOKUP($BN$5&"-"&$BN$3&"-"&A42,'DETTAGLIO VERSAMENTO'!$C$9:$M$2008,11,FALSE),"0,00"),1) ->  | BN42: =VLOOKUP($BN$5&"-"&$BN$3&"-"&A42,'DETTAGLIO VERSAMENTO'!$C$9:$AA$2008,25,FALSE) -> 
A43: 26 | C43: =VLOOKUP($BN$5&"-"&$BN$3&"-"&A43,'DETTAGLIO VERSAMENTO'!$C$9:$G$2008,5,FALSE) ->  | P43: =VLOOKUP($BN$5&"-"&$BN$3&"-"&A43,'DETTAGLIO VERSAMENTO'!$C$9:$H$2008,6,FALSE) ->  | S43: =VLOOKUP($BN$5&"-"&$BN$3&"-"&A43,'DETTAGLIO VERSAMENTO'!$C$9:$I$2008,7,FALSE) ->  | V43: =VLOOKUP($BN$5&"-"&$BN$3&"-"&A43,'DETTAGLIO VERSAMENTO'!$C$9:$J$2008,8,FALSE) ->  | AJ43: =VLOOKUP($BN$5&"-"&$BN$3&"-"&A43,'DETTAGLIO VERSAMENTO'!$C$9:$K$2008,9,FALSE) ->  | AQ43: =VLOOKUP($BN$5&"-"&$BN$3&"-"&A43,'DETTAGLIO VERSAMENTO'!$C$9:$L$2008,10,FALSE) ->  | AX43: =FLOOR(VLOOKUP($BN$5&"-"&$BN$3&"-"&A43,'DETTAGLIO VERSAMENTO'!$C$9:$M$2008,11,FALSE),1) ->  | BJ43: =LEFT(RIGHT(TEXT(VLOOKUP($BN$5&"-"&$BN$3&"-"&A43,'DETTAGLIO VERSAMENTO'!$C$9:$M$2008,11,FALSE),"0,00"),2),1) ->  | BL43: =RIGHT(TEXT(VLOOKUP($BN$5&"-"&$BN$3&"-"&A43,'DETTAGLIO VERSAMENTO'!$C$9:$M$2008,11,FALSE),"0,00"),1) ->  | BN43: =VLOOKUP($BN$5&"-"&$BN$3&"-"&A43,'DETTAGLIO VERSAMENTO'!$C$9:$AA$2008,25,FALSE) -> 
A44: 27 | C44: =VLOOKUP($BN$5&"-"&$BN$3&"-"&A44,'DETTAGLIO VERSAMENTO'!$C$9:$G$2008,5,FALSE) ->  | P44: =VLOOKUP($BN$5&"-"&$BN$3&"-"&A44,'DETTAGLIO VERSAMENTO'!$C$9:$H$2008,6,FALSE) ->  | S44: =VLOOKUP($BN$5&"-"&$BN$3&"-"&A44,'DETTAGLIO VERSAMENTO'!$C$9:$I$2008,7,FALSE) ->  | V44: =VLOOKUP($BN$5&"-"&$BN$3&"-"&A44,'DETTAGLIO VERSAMENTO'!$C$9:$J$2008,8,FALSE) ->  | AJ44: =VLOOKUP($BN$5&"-"&$BN$3&"-"&A44,'DETTAGLIO VERSAMENTO'!$C$9:$K$2008,9,FALSE) ->  | AQ44: =VLOOKUP($BN$5&"-"&$BN$3&"-"&A44,'DETTAGLIO VERSAMENTO'!$C$9:$L$2008,10,FALSE) ->  | AX44: =FLOOR(VLOOKUP($BN$5&"-"&$BN$3&"-"&A44,'DETTAGLIO VERSAMENTO'!$C$9:$M$2008,11,FALSE),1) ->  | BJ44: =LEFT(RIGHT(TEXT(VLOOKUP($BN$5&"-"&$BN$3&"-"&A44,'DETTAGLIO VERSAMENTO'!$C$9:$M$2008,11,FALSE),"0,00"),2),1) ->  | BL44: =RIGHT(TEXT(VLOOKUP($BN$5&"-"&$BN$3&"-"&A44,'DETTAGLIO VERSAMENTO'!$C$9:$M$2008,11,FALSE),"0,00"),1) ->  | BN44: =VLOOKUP($BN$5&"-"&$BN$3&"-"&A44,'DETTAGLIO VERSAMENTO'!$C$9:$AA$2008,25,FALSE) -> 
A45: 28 | C45: =VLOOKUP($BN$5&"-"&$BN$3&"-"&A45,'DETTAGLIO VERSAMENTO'!$C$9:$G$2008,5,FALSE) ->  | P45: =VLOOKUP($BN$5&"-"&$BN$3&"-"&A45,'DETTAGLIO VERSAMENTO'!$C$9:$H$2008,6,FALSE) ->  | S45: =VLOOKUP($BN$5&"-"&$BN$3&"-"&A45,'DETTAGLIO VERSAMENTO'!$C$9:$I$2008,7,FALSE) ->  | V45: =VLOOKUP($BN$5&"-"&$BN$3&"-"&A45,'DETTAGLIO VERSAMENTO'!$C$9:$J$2008,8,FALSE) ->  | AJ45: =VLOOKUP($BN$5&"-"&$BN$3&"-"&A45,'DETTAGLIO VERSAMENTO'!$C$9:$K$2008,9,FALSE) ->  | AQ45: =VLOOKUP($BN$5&"-"&$BN$3&"-"&A45,'DETTAGLIO VERSAMENTO'!$C$9:$L$2008,10,FALSE) ->  | AX45: =FLOOR(VLOOKUP($BN$5&"-"&$BN$3&"-"&A45,'DETTAGLIO VERSAMENTO'!$C$9:$M$2008,11,FALSE),1) ->  | BJ45: =LEFT(RIGHT(TEXT(VLOOKUP($BN$5&"-"&$BN$3&"-"&A45,'DETTAGLIO VERSAMENTO'!$C$9:$M$2008,11,FALSE),"0,00"),2),1) ->  | BL45: =RIGHT(TEXT(VLOOKUP($BN$5&"-"&$BN$3&"-"&A45,'DETTAGLIO VERSAMENTO'!$C$9:$M$2008,11,FALSE),"0,00"),1) ->  | BN45: =VLOOKUP($BN$5&"-"&$BN$3&"-"&A45,'DETTAGLIO VERSAMENTO'!$C$9:$AA$2008,25,FALSE) -> 
AP47: =FLOOR(SUMIF('DETTAGLIO VERSAMENTO'!B9:B2008,$BN$5&"-"&$BN$3,'DETTAGLIO VERSAMENTO'!M9:M2008),1) -> 12345 | BJ47: =LEFT(RIGHT(TEXT(SUMIF('DETTAGLIO VERSAMENTO'!B9:B2008,$BN$5&"-"&$BN$3,'DETTAGLIO VERSAMENTO'!M9:M2008),"0,00"),2),1) -> 9 | BL47: =RIGHT(TEXT(SUMIF('DETTAGLIO VERSAMENTO'!B9:B2008,$BN$5&"-"&$BN$3,'DETTAGLIO VERSAMENTO'!M9:M2008),"0,00"),1) -> 8
C49: =MID(TEXT(AI60,"gg/mm/aaaa"),1,1) -> 0 | E49: =MID(TEXT(AI60,"gg/mm/aaaa"),2,1) -> 1 | G49: =MID(TEXT(AI60,"gg/mm/aaaa"),4,1) -> 0 | I49: =MID(TEXT(AI60,"gg/mm/aaaa"),5,1) -> 1 | K49: =MID(TEXT(AI60,"gg/mm/aaaa"),7,1) -> 2 | L49: =MID(TEXT(AI60,"gg/mm/aaaa"),8,1) -> 0 | M49: =MID(TEXT(AI60,"gg/mm/aaaa"),9,1) -> 2 | N49: =MID(TEXT(AI60,"gg/mm/aaaa"),10,1) -> 4 | R49: =MID(AI59,1,1) -> A | S49: =MID(AI59,2,1) -> B | T49: =MID(AI59,3,1) -> C | U49: =MID(AI59,4,1) -> . | V49: =MID(AI59,5,1) -> . | W49: =MID(AI59,6,1) -> . | X49: =MID(AI59,7,1) -> . | Y49: =MID(AI59,8,1) -> . | Z49: =MID(AI59,9,1) -> . | AA49: =MID(AI59,10,1) -> . | AB49: =MID(AI59,11,1) -> . | AD49: =MID(AI59,12,1) -> . | AF49: =MID(AI59,13,1) -> . | AH49: =MID(AI59,14,1) -> . | AJ49: =MID(AI59,15,1) -> c | AL49: =MID(AI59,16,1) -> a | AN49: =MID(AI59,17,1) -> r | AP49: =MID(AI59,18,1) -> a | AR49: =MID(AI59,19,1) -> t | AT49: =MID(AI59,20,1) -> t | AV49: =MID(AI59,21,1) -> e | AX49: =MID(AI59,22,1) -> r | AZ49: =MID(AI59,23,1) -> i | BB49: =MID(AI59,24,1) ->  | BD49: =MID(AI59,25,1) ->  | BF49: =MID(AI59,26,1) -> 2 | BH49: =MID(AI59,27,1) -> 7 | BN49: =BN5 -> 1
B52: Oscura
G53: Data | BL53: =CONTRIBUENTE!$G$13 -> 
G54: Conto di tesoreria
G55: Delega Irrevocabile
AI59: =VLOOKUP(VLOOKUP($BN$5&"-"&$BN$3,'DETTAGLIO VERSAMENTO'!$B$9:$T$2008,19,FALSE),Tabelle!B5:C9,2,FALSE) -> ABC...........caratteri 27
D60: =COUNTIF(D16:I16,0) -> 0 | M60: =IF(B53=$H$61,TRUE,FALSE) -> FALSE | AI60: =IF(ISERROR(VLOOKUP($BN$5&"-"&$BN$3,'DETTAGLIO VERSAMENTO'!$B$9:$E$2008,4,FALSE)),0,VLOOKUP($BN$5&"-"&$BN$3,'DETTAGLIO VERSAMENTO'!$B$9:$E$2008,4,FALSE)) -> 2024-01-01
D61: =COUNTIF(K16:V16,0) -> 5 | H61: Oscura | M61: =IF(B54=$H$61,TRUE,FALSE) -> FALSE
M62: =IF(B55=$H$61,TRUE,FALSE) -> FALSE | T62: =IF(ISERROR(AR63),"File danneggiato",IF(AZ63=0,"File scaduto","")) ->  | AH62: Codice integrità | AR62: Integrità | AZ62: File scaduto / INVERTITO
AH63: 1 | AR63: =CONTRIBUENTE!K138 -> 4 | AZ63: =IF(CONTRIBUENTE!$H$138=1,0,1) -> 1

Sheet Tabelle
B4: SIGLA | C4: Addebito su Conti di Tesoreria | E4: SIGLA | F4: Delega irrevocabile
B5: C1 | C5: ABC...........caratteri 27 | E5: B1 | F5: NOME 1
B6: C2 | E6: B2
B7: C3 | E7: B3
B8: C4
B9: C5
C11: Personalizza tutti i campi liberi.
G18: www.marcopiccoli.it
C20: Codice integrità | G20: Integrità
C21: 1 | G21: =CONTRIBUENTE!K138 -> 4
